{"text_format":"3","workbook":"xlsx","n_sheets":3,"sheets":["Podatki načrta","Agilni načrt","Več informacij"],"not_rendered":{"defined_names":5},"read":"whole","date_system":"1900"}

{"sheet":"Podatki načrta","index":0,"n_rows":13,"n_cols":7,"rows_kept":13,"merged":[[12,1,12,4]]}
["Ustvarite agilni načrt tako, da vnesete pomembne mejnike ali dejavnosti v tabelo »Podatki načrta« v tem delovnem listu.\nNaslov tega delovnega lista je v celici B1. \nPodatki o tem, kako uporabljate ta delovni list, vključno z navodili za bralnike zaslona, so na voljo na delovnem listu »Več informacij«.\nČe si želite ogledati nadaljnja navodila, se pomikajte navzdol v stolpcu A.","Agilni podatki na časovnici"]
["Naslovi tabel so v celicah B2–E2. Če želite razvrstiti tabelo in poiskati določene elemente, uporabite filtre glav.\nAgilni načrt je najbolj učinkovit, če je tabela razvrščena v naraščajočem vrstnem redu tako, da je na prvem mestu prioriteta, ki ji nato sledi mejnik ali dejavnost.\nVzorčni podatki v tabeli s podatki načrta so v celicah B3–E12. \nKo dokončate mejnik ali dejavnost, posodobite ustrezno polje z rezultatom tako, da prikažete rezultate na delovnem listu »Agilni načrt«. Vnesite »Ni spremembe«, da označite mejnike brez vpliva.\nZa nadaljnja navodila se pomaknite v celico A13.\n","Cilj","Mejnik ali dejavnost","Prioriteta","Rezultat",null,"<-- Razvrstite tabelo po stolpcih Prioriteta in Mejnik ali Dejavnost v naraščajočem vrstnem redu."]
[null,"Trenutno","Dejavnost 1\nUstvarjanje prototipa","1 – visoka",null,null,"<-- Dodajte rezultat za posamezne dokončane mejnike. Vnesite »Ni spremembe«, da označite mejnike brez vpliva."]
[null,"Kratek rok","Dejavnost 2\nPredstavitev prototipa","1 – visoka"]
[null,"Trenutno","Dejavnost 6","1 – visoka"]
[null,"Prihodnost","Dejavnost 7\nRazvoj dejavnosti, ki ga izvedejo zunanji izvajalci, prva stopnja – uvedba.","1 – visoka"]
[null,"Dokončano","Dejavnost 9\nPrva stopnja – odobrena","1 – visoka","Znižanje za 10 %"]
[null,"Prihodnost","Dejavnost 10","2 – srednja"]
[null,"Kratek rok","Dejavnost 8","2 – srednja"]
[null,"Dokončano","Dejavnost 3","3 – nizka","Ni spremembe"]
[null,"Prihodnost","Dejavnost 4","3 – nizka"]
[null,"Trenutno","Dejavnost 5","3 – nizka"]
["Dodajte nove elemente tako, da vnesete nove vrstice v tabelo nad to črto.\nTo je zadnje navodilo v tem delovnem listu.","Dodajte nove elemente tako, da vnesete nove vrstice nad to črto."]

{"sheet":"Agilni načrt","index":1,"n_rows":100,"n_cols":8,"rows_kept":100}
["Na tem delovnem listu je agilni načrt, ki prikazuje mejnike in aktivnosti z delovnega lista »Podatki načrta«. \nNaslov je v celici B1. \nRezultati z besedno zvezo »Ni spremembe« so označeni s svetlo oranžno barvo, rgb(255, 230, 210).\nDokončani mejniki ali dejavnosti so označene s svetlo zeleno barvo, rgb(237,251,219).","Agilni načrt"]
["Naslovi grafikona so v celicah B2, D2, F2 in H2. Naslovi so taki: Dokončano, Trenutno, Kratek rok in Prihodnost. Spremenite te naslove, če želite spremeniti vrednosti izbire za cilje v tabeli »Podatki načrta« na delovnem listu »Podatki načrta«.\nCelice B3–H20 vključujejo mejnike in dejavnosti za naslove v tej vrstici. \nMejniki in dejavnosti so ustvarjene na delovnem listu »Podatki načrta«.\nNE spreminjajte ali brišite vnosov na tem delovnem listu. Posodobite tabelo »Podatki načrta« na delovnem listu »Podatki načrta«, da posodobite vsebino na tem delovnem listu.\nTo je zadnje navodilo v tem delovnem listu.","Dokončano",null,"Trenutno",null,"Kratek rok",null,"Prihodnost"]
[null,{"$f":"IFERROR(INDEX(Dejavnost,SMALL(IF(Cilj=$B$2,ROW(Dejavnost)-MIN(ROW(Dejavnost))+1),ROWS($B$3:B3)))&\" \"&CHAR(10)&(INDEX(Rezultat,SMALL(IF(Cilj=$B$2,ROW(Rezultat)-MIN(ROW(Rezultat))+1),ROWS($B$3:B3))))&CHAR(10),\"\")","v":"Dejavnost 9\nPrva stopnja – odobrena \nZnižanje za 10 %\n"},null,{"$f":"IFERROR(INDEX(Dejavnost,SMALL(IF(Cilj=$D$2,ROW(Dejavnost)-MIN(ROW(Dejavnost))+1),ROWS($B$3:B3)))&CHAR(10),\"\")","v":"Dejavnost 1\nUstvarjanje prototipa\n"},null,{"$f":"IFERROR(INDEX(Dejavnost,SMALL(IF(Cilj=$F$2,ROW(Dejavnost)-MIN(ROW(Dejavnost))+1),ROWS($B$3:B3)))&CHAR(10),\"\")","v":"Dejavnost 2\nPredstavitev prototipa\n"},null,{"$f":"IFERROR(INDEX(Dejavnost,SMALL(IF(Cilj=$H$2,ROW(Dejavnost)-MIN(ROW(Dejavnost))+1),ROWS($B$3:B3)))&CHAR(10),\"\")","v":"Dejavnost 7\nRazvoj dejavnosti, ki ga izvedejo zunanji izvajalci, prva stopnja – uvedba.\n"}]
[null,{"$f":"IFERROR(INDEX(Dejavnost,SMALL(IF(Cilj=$B$2,ROW(Dejavnost)-MIN(ROW(Dejavnost))+1),ROWS($B$3:B4)))&\" \"&CHAR(10)&(INDEX(Rezultat,SMALL(IF(Cilj=$B$2,ROW(Rezultat)-MIN(ROW(Rezultat))+1),ROWS($B$3:B4))))&CHAR(10),\"\")","v":"Dejavnost 3 \nNi spremembe\n"},null,{"$f":"IFERROR(INDEX(Dejavnost,SMALL(IF(Cilj=$D$2,ROW(Dejavnost)-MIN(ROW(Dejavnost))+1),ROWS($B$3:B4)))&CHAR(10),\"\")","v":"Dejavnost 6\n"},null,{"$f":"IFERROR(INDEX(Dejavnost,SMALL(IF(Cilj=$F$2,ROW(Dejavnost)-MIN(ROW(Dejavnost))+1),ROWS($B$3:B4)))&CHAR(10),\"\")","v":"Dejavnost 8\n"},null,{"$f":"IFERROR(INDEX(Dejavnost,SMALL(IF(Cilj=$H$2,ROW(Dejavnost)-MIN(ROW(Dejavnost))+1),ROWS($B$3:B4)))&CHAR(10),\"\")","v":"Dejavnost 10\n"}]
[null,{"$f":"IFERROR(INDEX(Dejavnost,SMALL(IF(Cilj=$B$2,ROW(Dejavnost)-MIN(ROW(Dejavnost))+1),ROWS($B$3:B5)))&\" \"&CHAR(10)&(INDEX(Rezultat,SMALL(IF(Cilj=$B$2,ROW(Rezultat)-MIN(ROW(Rezultat))+1),ROWS($B$3:B5))))&CHAR(10),\"\")","v":""},null,{"$f":"IFERROR(INDEX(Dejavnost,SMALL(IF(Cilj=$D$2,ROW(Dejavnost)-MIN(ROW(Dejavnost))+1),ROWS($B$3:B5)))&CHAR(10),\"\")","v":"Dejavnost 5\n"},null,{"$f":"IFERROR(INDEX(Dejavnost,SMALL(IF(Cilj=$F$2,ROW(Dejavnost)-MIN(ROW(Dejavnost))+1),ROWS($B$3:B5)))&CHAR(10),\"\")","v":""},null,{"$f":"IFERROR(INDEX(Dejavnost,SMALL(IF(Cilj=$H$2,ROW(Dejavnost)-MIN(ROW(Dejavnost))+1),ROWS($B$3:B5)))&CHAR(10),\"\")","v":"Dejavnost 4\n"}]
[null,{"$f":"IFERROR(INDEX(Dejavnost,SMALL(IF(Cilj=$B$2,ROW(Dejavnost)-MIN(ROW(Dejavnost))+1),ROWS($B$3:B6)))&\" \"&CHAR(10)&(INDEX(Rezultat,SMALL(IF(Cilj=$B$2,ROW(Rezultat)-MIN(ROW(Rezultat))+1),ROWS($B$3:B6))))&CHAR(10),\"\")","v":""},null,{"$f":"IFERROR(INDEX(Dejavnost,SMALL(IF(Cilj=$D$2,ROW(Dejavnost)-MIN(ROW(Dejavnost))+1),ROWS($B$3:B6)))&CHAR(10),\"\")","v":""},null,{"$f":"IFERROR(INDEX(Dejavnost,SMALL(IF(Cilj=$F$2,ROW(Dejavnost)-MIN(ROW(Dejavnost))+1),ROWS($B$3:B6)))&CHAR(10),\"\")","v":""},null,{"$f":"IFERROR(INDEX(Dejavnost,SMALL(IF(Cilj=$H$2,ROW(Dejavnost)-MIN(ROW(Dejavnost))+1),ROWS($B$3:B6)))&CHAR(10),\"\")","v":""}]
[null,{"$f":"IFERROR(INDEX(Dejavnost,SMALL(IF(Cilj=$B$2,ROW(Dejavnost)-MIN(ROW(Dejavnost))+1),ROWS($B$3:B7)))&\" \"&CHAR(10)&(INDEX(Rezultat,SMALL(IF(Cilj=$B$2,ROW(Rezultat)-MIN(ROW(Rezultat))+1),ROWS($B$3:B7))))&CHAR(10),\"\")","v":""},null,{"$f":"IFERROR(INDEX(Dejavnost,SMALL(IF(Cilj=$D$2,ROW(Dejavnost)-MIN(ROW(Dejavnost))+1),ROWS($B$3:B7)))&CHAR(10),\"\")","v":""},null,{"$f":"IFERROR(INDEX(Dejavnost,SMALL(IF(Cilj=$F$2,ROW(Dejavnost)-MIN(ROW(Dejavnost))+1),ROWS($B$3:B7)))&CHAR(10),\"\")","v":""},null,{"$f":"IFERROR(INDEX(Dejavnost,SMALL(IF(Cilj=$H$2,ROW(Dejavnost)-MIN(ROW(Dejavnost))+1),ROWS($B$3:B7)))&CHAR(10),\"\")","v":""}]
[null,{"$f":"IFERROR(INDEX(Dejavnost,SMALL(IF(Cilj=$B$2,ROW(Dejavnost)-MIN(ROW(Dejavnost))+1),ROWS($B$3:B8)))&\" \"&CHAR(10)&(INDEX(Rezultat,SMALL(IF(Cilj=$B$2,ROW(Rezultat)-MIN(ROW(Rezultat))+1),ROWS($B$3:B8))))&CHAR(10),\"\")","v":""},null,{"$f":"IFERROR(INDEX(Dejavnost,SMALL(IF(Cilj=$D$2,ROW(Dejavnost)-MIN(ROW(Dejavnost))+1),ROWS($B$3:B8)))&CHAR(10),\"\")","v":""},null,{"$f":"IFERROR(INDEX(Dejavnost,SMALL(IF(Cilj=$F$2,ROW(Dejavnost)-MIN(ROW(Dejavnost))+1),ROWS($B$3:B8)))&CHAR(10),\"\")","v":""},null,{"$f":"IFERROR(INDEX(Dejavnost,SMALL(IF(Cilj=$H$2,ROW(Dejavnost)-MIN(ROW(Dejavnost))+1),ROWS($B$3:B8)))&CHAR(10),\"\")","v":""}]
[null,{"$f":"IFERROR(INDEX(Dejavnost,SMALL(IF(Cilj=$B$2,ROW(Dejavnost)-MIN(ROW(Dejavnost))+1),ROWS($B$3:B9)))&\" \"&CHAR(10)&(INDEX(Rezultat,SMALL(IF(Cilj=$B$2,ROW(Rezultat)-MIN(ROW(Rezultat))+1),ROWS($B$3:B9))))&CHAR(10),\"\")","v":""},null,{"$f":"IFERROR(INDEX(Dejavnost,SMALL(IF(Cilj=$D$2,ROW(Dejavnost)-MIN(ROW(Dejavnost))+1),ROWS($B$3:B9)))&CHAR(10),\"\")","v":""},null,{"$f":"IFERROR(INDEX(Dejavnost,SMALL(IF(Cilj=$F$2,ROW(Dejavnost)-MIN(ROW(Dejavnost))+1),ROWS($B$3:B9)))&CHAR(10),\"\")","v":""},null,{"$f":"IFERROR(INDEX(Dejavnost,SMALL(IF(Cilj=$H$2,ROW(Dejavnost)-MIN(ROW(Dejavnost))+1),ROWS($B$3:B9)))&CHAR(10),\"\")","v":""}]
[null,{"$f":"IFERROR(INDEX(Dejavnost,SMALL(IF(Cilj=$B$2,ROW(Dejavnost)-MIN(ROW(Dejavnost))+1),ROWS($B$3:B10)))&\" \"&CHAR(10)&(INDEX(Rezultat,SMALL(IF(Cilj=$B$2,ROW(Rezultat)-MIN(ROW(Rezultat))+1),ROWS($B$3:B10))))&CHAR(10),\"\")","v":""},null,{"$f":"IFERROR(INDEX(Dejavnost,SMALL(IF(Cilj=$D$2,ROW(Dejavnost)-MIN(ROW(Dejavnost))+1),ROWS($B$3:B10)))&CHAR(10),\"\")","v":""},null,{"$f":"IFERROR(INDEX(Dejavnost,SMALL(IF(Cilj=$F$2,ROW(Dejavnost)-MIN(ROW(Dejavnost))+1),ROWS($B$3:B10)))&CHAR(10),\"\")","v":""},null,{"$f":"IFERROR(INDEX(Dejavnost,SMALL(IF(Cilj=$H$2,ROW(Dejavnost)-MIN(ROW(Dejavnost))+1),ROWS($B$3:B10)))&CHAR(10),\"\")","v":""}]
[null,{"$f":"IFERROR(INDEX(Dejavnost,SMALL(IF(Cilj=$B$2,ROW(Dejavnost)-MIN(ROW(Dejavnost))+1),ROWS($B$3:B11)))&\" \"&CHAR(10)&(INDEX(Rezultat,SMALL(IF(Cilj=$B$2,ROW(Rezultat)-MIN(ROW(Rezultat))+1),ROWS($B$3:B11))))&CHAR(10),\"\")","v":""},null,{"$f":"IFERROR(INDEX(Dejavnost,SMALL(IF(Cilj=$D$2,ROW(Dejavnost)-MIN(ROW(Dejavnost))+1),ROWS($B$3:B11)))&CHAR(10),\"\")","v":""},null,{"$f":"IFERROR(INDEX(Dejavnost,SMALL(IF(Cilj=$F$2,ROW(Dejavnost)-MIN(ROW(Dejavnost))+1),ROWS($B$3:B11)))&CHAR(10),\"\")","v":""},null,{"$f":"IFERROR(INDEX(Dejavnost,SMALL(IF(Cilj=$H$2,ROW(Dejavnost)-MIN(ROW(Dejavnost))+1),ROWS($B$3:B11)))&CHAR(10),\"\")","v":""}]
[null,{"$f":"IFERROR(INDEX(Dejavnost,SMALL(IF(Cilj=$B$2,ROW(Dejavnost)-MIN(ROW(Dejavnost))+1),ROWS($B$3:B12)))&\" \"&CHAR(10)&(INDEX(Rezultat,SMALL(IF(Cilj=$B$2,ROW(Rezultat)-MIN(ROW(Rezultat))+1),ROWS($B$3:B12))))&CHAR(10),\"\")","v":""},null,{"$f":"IFERROR(INDEX(Dejavnost,SMALL(IF(Cilj=$D$2,ROW(Dejavnost)-MIN(ROW(Dejavnost))+1),ROWS($B$3:B12)))&CHAR(10),\"\")","v":""},null,{"$f":"IFERROR(INDEX(Dejavnost,SMALL(IF(Cilj=$F$2,ROW(Dejavnost)-MIN(ROW(Dejavnost))+1),ROWS($B$3:B12)))&CHAR(10),\"\")","v":""},null,{"$f":"IFERROR(INDEX(Dejavnost,SMALL(IF(Cilj=$H$2,ROW(Dejavnost)-MIN(ROW(Dejavnost))+1),ROWS($B$3:B12)))&CHAR(10),\"\")","v":""}]
[null,{"$f":"IFERROR(INDEX(Dejavnost,SMALL(IF(Cilj=$B$2,ROW(Dejavnost)-MIN(ROW(Dejavnost))+1),ROWS($B$3:B13)))&\" \"&CHAR(10)&(INDEX(Rezultat,SMALL(IF(Cilj=$B$2,ROW(Rezultat)-MIN(ROW(Rezultat))+1),ROWS($B$3:B13))))&CHAR(10),\"\")","v":""},null,{"$f":"IFERROR(INDEX(Dejavnost,SMALL(IF(Cilj=$D$2,ROW(Dejavnost)-MIN(ROW(Dejavnost))+1),ROWS($B$3:B13)))&CHAR(10),\"\")","v":""},null,{"$f":"IFERROR(INDEX(Dejavnost,SMALL(IF(Cilj=$F$2,ROW(Dejavnost)-MIN(ROW(Dejavnost))+1),ROWS($B$3:B13)))&CHAR(10),\"\")","v":""},null,{"$f":"IFERROR(INDEX(Dejavnost,SMALL(IF(Cilj=$H$2,ROW(Dejavnost)-MIN(ROW(Dejavnost))+1),ROWS($B$3:B13)))&CHAR(10),\"\")","v":""}]
[null,{"$f":"IFERROR(INDEX(Dejavnost,SMALL(IF(Cilj=$B$2,ROW(Dejavnost)-MIN(ROW(Dejavnost))+1),ROWS($B$3:B14)))&\" \"&CHAR(10)&(INDEX(Rezultat,SMALL(IF(Cilj=$B$2,ROW(Rezultat)-MIN(ROW(Rezultat))+1),ROWS($B$3:B14))))&CHAR(10),\"\")","v":""},null,{"$f":"IFERROR(INDEX(Dejavnost,SMALL(IF(Cilj=$D$2,ROW(Dejavnost)-MIN(ROW(Dejavnost))+1),ROWS($B$3:B14)))&CHAR(10),\"\")","v":""},null,{"$f":"IFERROR(INDEX(Dejavnost,SMALL(IF(Cilj=$F$2,ROW(Dejavnost)-MIN(ROW(Dejavnost))+1),ROWS($B$3:B14)))&CHAR(10),\"\")","v":""},null,{"$f":"IFERROR(INDEX(Dejavnost,SMALL(IF(Cilj=$H$2,ROW(Dejavnost)-MIN(ROW(Dejavnost))+1),ROWS($B$3:B14)))&CHAR(10),\"\")","v":""}]
[null,{"$f":"IFERROR(INDEX(Dejavnost,SMALL(IF(Cilj=$B$2,ROW(Dejavnost)-MIN(ROW(Dejavnost))+1),ROWS($B$3:B15)))&\" \"&CHAR(10)&(INDEX(Rezultat,SMALL(IF(Cilj=$B$2,ROW(Rezultat)-MIN(ROW(Rezultat))+1),ROWS($B$3:B15))))&CHAR(10),\"\")","v":""},null,{"$f":"IFERROR(INDEX(Dejavnost,SMALL(IF(Cilj=$D$2,ROW(Dejavnost)-MIN(ROW(Dejavnost))+1),ROWS($B$3:B15)))&CHAR(10),\"\")","v":""},null,{"$f":"IFERROR(INDEX(Dejavnost,SMALL(IF(Cilj=$F$2,ROW(Dejavnost)-MIN(ROW(Dejavnost))+1),ROWS($B$3:B15)))&CHAR(10),\"\")","v":""},null,{"$f":"IFERROR(INDEX(Dejavnost,SMALL(IF(Cilj=$H$2,ROW(Dejavnost)-MIN(ROW(Dejavnost))+1),ROWS($B$3:B15)))&CHAR(10),\"\")","v":""}]
[null,{"$f":"IFERROR(INDEX(Dejavnost,SMALL(IF(Cilj=$B$2,ROW(Dejavnost)-MIN(ROW(Dejavnost))+1),ROWS($B$3:B16)))&\" \"&CHAR(10)&(INDEX(Rezultat,SMALL(IF(Cilj=$B$2,ROW(Rezultat)-MIN(ROW(Rezultat))+1),ROWS($B$3:B16))))&CHAR(10),\"\")","v":""},null,{"$f":"IFERROR(INDEX(Dejavnost,SMALL(IF(Cilj=$D$2,ROW(Dejavnost)-MIN(ROW(Dejavnost))+1),ROWS($B$3:B16)))&CHAR(10),\"\")","v":""},null,{"$f":"IFERROR(INDEX(Dejavnost,SMALL(IF(Cilj=$F$2,ROW(Dejavnost)-MIN(ROW(Dejavnost))+1),ROWS($B$3:B16)))&CHAR(10),\"\")","v":""},null,{"$f":"IFERROR(INDEX(Dejavnost,SMALL(IF(Cilj=$H$2,ROW(Dejavnost)-MIN(ROW(Dejavnost))+1),ROWS($B$3:B16)))&CHAR(10),\"\")","v":""}]
[null,{"$f":"IFERROR(INDEX(Dejavnost,SMALL(IF(Cilj=$B$2,ROW(Dejavnost)-MIN(ROW(Dejavnost))+1),ROWS($B$3:B17)))&\" \"&CHAR(10)&(INDEX(Rezultat,SMALL(IF(Cilj=$B$2,ROW(Rezultat)-MIN(ROW(Rezultat))+1),ROWS($B$3:B17))))&CHAR(10),\"\")","v":""},null,{"$f":"IFERROR(INDEX(Dejavnost,SMALL(IF(Cilj=$D$2,ROW(Dejavnost)-MIN(ROW(Dejavnost))+1),ROWS($B$3:B17)))&CHAR(10),\"\")","v":""},null,{"$f":"IFERROR(INDEX(Dejavnost,SMALL(IF(Cilj=$F$2,ROW(Dejavnost)-MIN(ROW(Dejavnost))+1),ROWS($B$3:B17)))&CHAR(10),\"\")","v":""},null,{"$f":"IFERROR(INDEX(Dejavnost,SMALL(IF(Cilj=$H$2,ROW(Dejavnost)-MIN(ROW(Dejavnost))+1),ROWS($B$3:B17)))&CHAR(10),\"\")","v":""}]
[null,{"$f":"IFERROR(INDEX(Dejavnost,SMALL(IF(Cilj=$B$2,ROW(Dejavnost)-MIN(ROW(Dejavnost))+1),ROWS($B$3:B18)))&\" \"&CHAR(10)&(INDEX(Rezultat,SMALL(IF(Cilj=$B$2,ROW(Rezultat)-MIN(ROW(Rezultat))+1),ROWS($B$3:B18))))&CHAR(10),\"\")","v":""},null,{"$f":"IFERROR(INDEX(Dejavnost,SMALL(IF(Cilj=$D$2,ROW(Dejavnost)-MIN(ROW(Dejavnost))+1),ROWS($B$3:B18)))&CHAR(10),\"\")","v":""},null,{"$f":"IFERROR(INDEX(Dejavnost,SMALL(IF(Cilj=$F$2,ROW(Dejavnost)-MIN(ROW(Dejavnost))+1),ROWS($B$3:B18)))&CHAR(10),\"\")","v":""},null,{"$f":"IFERROR(INDEX(Dejavnost,SMALL(IF(Cilj=$H$2,ROW(Dejavnost)-MIN(ROW(Dejavnost))+1),ROWS($B$3:B18)))&CHAR(10),\"\")","v":""}]
[null,{"$f":"IFERROR(INDEX(Dejavnost,SMALL(IF(Cilj=$B$2,ROW(Dejavnost)-MIN(ROW(Dejavnost))+1),ROWS($B$3:B19)))&\" \"&CHAR(10)&(INDEX(Rezultat,SMALL(IF(Cilj=$B$2,ROW(Rezultat)-MIN(ROW(Rezultat))+1),ROWS($B$3:B19))))&CHAR(10),\"\")","v":""},null,{"$f":"IFERROR(INDEX(Dejavnost,SMALL(IF(Cilj=$D$2,ROW(Dejavnost)-MIN(ROW(Dejavnost))+1),ROWS($B$3:B19)))&CHAR(10),\"\")","v":""},null,{"$f":"IFERROR(INDEX(Dejavnost,SMALL(IF(Cilj=$F$2,ROW(Dejavnost)-MIN(ROW(Dejavnost))+1),ROWS($B$3:B19)))&CHAR(10),\"\")","v":""},null,{"$f":"IFERROR(INDEX(Dejavnost,SMALL(IF(Cilj=$H$2,ROW(Dejavnost)-MIN(ROW(Dejavnost))+1),ROWS($B$3:B19)))&CHAR(10),\"\")","v":""}]
[null,{"$f":"IFERROR(INDEX(Dejavnost,SMALL(IF(Cilj=$B$2,ROW(Dejavnost)-MIN(ROW(Dejavnost))+1),ROWS($B$3:B20)))&\" \"&CHAR(10)&(INDEX(Rezultat,SMALL(IF(Cilj=$B$2,ROW(Rezultat)-MIN(ROW(Rezultat))+1),ROWS($B$3:B20))))&CHAR(10),\"\")","v":""},null,{"$f":"IFERROR(INDEX(Dejavnost,SMALL(IF(Cilj=$D$2,ROW(Dejavnost)-MIN(ROW(Dejavnost))+1),ROWS($B$3:B20)))&CHAR(10),\"\")","v":""},null,{"$f":"IFERROR(INDEX(Dejavnost,SMALL(IF(Cilj=$F$2,ROW(Dejavnost)-MIN(ROW(Dejavnost))+1),ROWS($B$3:B20)))&CHAR(10),\"\")","v":""},null,{"$f":"IFERROR(INDEX(Dejavnost,SMALL(IF(Cilj=$H$2,ROW(Dejavnost)-MIN(ROW(Dejavnost))+1),ROWS($B$3:B20)))&CHAR(10),\"\")","v":""}]
[null,{"$f":"IFERROR(INDEX(Dejavnost,SMALL(IF(Cilj=$B$2,ROW(Dejavnost)-MIN(ROW(Dejavnost))+1),ROWS($B$3:B21)))&\" \"&CHAR(10)&(INDEX(Rezultat,SMALL(IF(Cilj=$B$2,ROW(Rezultat)-MIN(ROW(Rezultat))+1),ROWS($B$3:B21))))&CHAR(10),\"\")","v":""},null,{"$f":"IFERROR(INDEX(Dejavnost,SMALL(IF(Cilj=$D$2,ROW(Dejavnost)-MIN(ROW(Dejavnost))+1),ROWS($B$3:B21)))&CHAR(10),\"\")","v":""},null,{"$f":"IFERROR(INDEX(Dejavnost,SMALL(IF(Cilj=$F$2,ROW(Dejavnost)-MIN(ROW(Dejavnost))+1),ROWS($B$3:B21)))&CHAR(10),\"\")","v":""},null,{"$f":"IFERROR(INDEX(Dejavnost,SMALL(IF(Cilj=$H$2,ROW(Dejavnost)-MIN(ROW(Dejavnost))+1),ROWS($B$3:B21)))&CHAR(10),\"\")","v":""}]
[null,{"$f":"IFERROR(INDEX(Dejavnost,SMALL(IF(Cilj=$B$2,ROW(Dejavnost)-MIN(ROW(Dejavnost))+1),ROWS($B$3:B22)))&\" \"&CHAR(10)&(INDEX(Rezultat,SMALL(IF(Cilj=$B$2,ROW(Rezultat)-MIN(ROW(Rezultat))+1),ROWS($B$3:B22))))&CHAR(10),\"\")","v":""},null,{"$f":"IFERROR(INDEX(Dejavnost,SMALL(IF(Cilj=$D$2,ROW(Dejavnost)-MIN(ROW(Dejavnost))+1),ROWS($B$3:B22)))&CHAR(10),\"\")","v":""},null,{"$f":"IFERROR(INDEX(Dejavnost,SMALL(IF(Cilj=$F$2,ROW(Dejavnost)-MIN(ROW(Dejavnost))+1),ROWS($B$3:B22)))&CHAR(10),\"\")","v":""},null,{"$f":"IFERROR(INDEX(Dejavnost,SMALL(IF(Cilj=$H$2,ROW(Dejavnost)-MIN(ROW(Dejavnost))+1),ROWS($B$3:B22)))&CHAR(10),\"\")","v":""}]
[null,{"$f":"IFERROR(INDEX(Dejavnost,SMALL(IF(Cilj=$B$2,ROW(Dejavnost)-MIN(ROW(Dejavnost))+1),ROWS($B$3:B23)))&\" \"&CHAR(10)&(INDEX(Rezultat,SMALL(IF(Cilj=$B$2,ROW(Rezultat)-MIN(ROW(Rezultat))+1),ROWS($B$3:B23))))&CHAR(10),\"\")","v":""},null,{"$f":"IFERROR(INDEX(Dejavnost,SMALL(IF(Cilj=$D$2,ROW(Dejavnost)-MIN(ROW(Dejavnost))+1),ROWS($B$3:B23)))&CHAR(10),\"\")","v":""},null,{"$f":"IFERROR(INDEX(Dejavnost,SMALL(IF(Cilj=$F$2,ROW(Dejavnost)-MIN(ROW(Dejavnost))+1),ROWS($B$3:B23)))&CHAR(10),\"\")","v":""},null,{"$f":"IFERROR(INDEX(Dejavnost,SMALL(IF(Cilj=$H$2,ROW(Dejavnost)-MIN(ROW(Dejavnost))+1),ROWS($B$3:B23)))&CHAR(10),\"\")","v":""}]
[null,{"$f":"IFERROR(INDEX(Dejavnost,SMALL(IF(Cilj=$B$2,ROW(Dejavnost)-MIN(ROW(Dejavnost))+1),ROWS($B$3:B24)))&\" \"&CHAR(10)&(INDEX(Rezultat,SMALL(IF(Cilj=$B$2,ROW(Rezultat)-MIN(ROW(Rezultat))+1),ROWS($B$3:B24))))&CHAR(10),\"\")","v":""},null,{"$f":"IFERROR(INDEX(Dejavnost,SMALL(IF(Cilj=$D$2,ROW(Dejavnost)-MIN(ROW(Dejavnost))+1),ROWS($B$3:B24)))&CHAR(10),\"\")","v":""},null,{"$f":"IFERROR(INDEX(Dejavnost,SMALL(IF(Cilj=$F$2,ROW(Dejavnost)-MIN(ROW(Dejavnost))+1),ROWS($B$3:B24)))&CHAR(10),\"\")","v":""},null,{"$f":"IFERROR(INDEX(Dejavnost,SMALL(IF(Cilj=$H$2,ROW(Dejavnost)-MIN(ROW(Dejavnost))+1),ROWS($B$3:B24)))&CHAR(10),\"\")","v":""}]
[null,{"$f":"IFERROR(INDEX(Dejavnost,SMALL(IF(Cilj=$B$2,ROW(Dejavnost)-MIN(ROW(Dejavnost))+1),ROWS($B$3:B25)))&\" \"&CHAR(10)&(INDEX(Rezultat,SMALL(IF(Cilj=$B$2,ROW(Rezultat)-MIN(ROW(Rezultat))+1),ROWS($B$3:B25))))&CHAR(10),\"\")","v":""},null,{"$f":"IFERROR(INDEX(Dejavnost,SMALL(IF(Cilj=$D$2,ROW(Dejavnost)-MIN(ROW(Dejavnost))+1),ROWS($B$3:B25)))&CHAR(10),\"\")","v":""},null,{"$f":"IFERROR(INDEX(Dejavnost,SMALL(IF(Cilj=$F$2,ROW(Dejavnost)-MIN(ROW(Dejavnost))+1),ROWS($B$3:B25)))&CHAR(10),\"\")","v":""},null,{"$f":"IFERROR(INDEX(Dejavnost,SMALL(IF(Cilj=$H$2,ROW(Dejavnost)-MIN(ROW(Dejavnost))+1),ROWS($B$3:B25)))&CHAR(10),\"\")","v":""}]
[null,{"$f":"IFERROR(INDEX(Dejavnost,SMALL(IF(Cilj=$B$2,ROW(Dejavnost)-MIN(ROW(Dejavnost))+1),ROWS($B$3:B26)))&\" \"&CHAR(10)&(INDEX(Rezultat,SMALL(IF(Cilj=$B$2,ROW(Rezultat)-MIN(ROW(Rezultat))+1),ROWS($B$3:B26))))&CHAR(10),\"\")","v":""},null,{"$f":"IFERROR(INDEX(Dejavnost,SMALL(IF(Cilj=$D$2,ROW(Dejavnost)-MIN(ROW(Dejavnost))+1),ROWS($B$3:B26)))&CHAR(10),\"\")","v":""},null,{"$f":"IFERROR(INDEX(Dejavnost,SMALL(IF(Cilj=$F$2,ROW(Dejavnost)-MIN(ROW(Dejavnost))+1),ROWS($B$3:B26)))&CHAR(10),\"\")","v":""},null,{"$f":"IFERROR(INDEX(Dejavnost,SMALL(IF(Cilj=$H$2,ROW(Dejavnost)-MIN(ROW(Dejavnost))+1),ROWS($B$3:B26)))&CHAR(10),\"\")","v":""}]
[null,{"$f":"IFERROR(INDEX(Dejavnost,SMALL(IF(Cilj=$B$2,ROW(Dejavnost)-MIN(ROW(Dejavnost))+1),ROWS($B$3:B27)))&\" \"&CHAR(10)&(INDEX(Rezultat,SMALL(IF(Cilj=$B$2,ROW(Rezultat)-MIN(ROW(Rezultat))+1),ROWS($B$3:B27))))&CHAR(10),\"\")","v":""},null,{"$f":"IFERROR(INDEX(Dejavnost,SMALL(IF(Cilj=$D$2,ROW(Dejavnost)-MIN(ROW(Dejavnost))+1),ROWS($B$3:B27)))&CHAR(10),\"\")","v":""},null,{"$f":"IFERROR(INDEX(Dejavnost,SMALL(IF(Cilj=$F$2,ROW(Dejavnost)-MIN(ROW(Dejavnost))+1),ROWS($B$3:B27)))&CHAR(10),\"\")","v":""},null,{"$f":"IFERROR(INDEX(Dejavnost,SMALL(IF(Cilj=$H$2,ROW(Dejavnost)-MIN(ROW(Dejavnost))+1),ROWS($B$3:B27)))&CHAR(10),\"\")","v":""}]
[null,{"$f":"IFERROR(INDEX(Dejavnost,SMALL(IF(Cilj=$B$2,ROW(Dejavnost)-MIN(ROW(Dejavnost))+1),ROWS($B$3:B28)))&\" \"&CHAR(10)&(INDEX(Rezultat,SMALL(IF(Cilj=$B$2,ROW(Rezultat)-MIN(ROW(Rezultat))+1),ROWS($B$3:B28))))&CHAR(10),\"\")","v":""},null,{"$f":"IFERROR(INDEX(Dejavnost,SMALL(IF(Cilj=$D$2,ROW(Dejavnost)-MIN(ROW(Dejavnost))+1),ROWS($B$3:B28)))&CHAR(10),\"\")","v":""},null,{"$f":"IFERROR(INDEX(Dejavnost,SMALL(IF(Cilj=$F$2,ROW(Dejavnost)-MIN(ROW(Dejavnost))+1),ROWS($B$3:B28)))&CHAR(10),\"\")","v":""},null,{"$f":"IFERROR(INDEX(Dejavnost,SMALL(IF(Cilj=$H$2,ROW(Dejavnost)-MIN(ROW(Dejavnost))+1),ROWS($B$3:B28)))&CHAR(10),\"\")","v":""}]
[null,{"$f":"IFERROR(INDEX(Dejavnost,SMALL(IF(Cilj=$B$2,ROW(Dejavnost)-MIN(ROW(Dejavnost))+1),ROWS($B$3:B29)))&\" \"&CHAR(10)&(INDEX(Rezultat,SMALL(IF(Cilj=$B$2,ROW(Rezultat)-MIN(ROW(Rezultat))+1),ROWS($B$3:B29))))&CHAR(10),\"\")","v":""},null,{"$f":"IFERROR(INDEX(Dejavnost,SMALL(IF(Cilj=$D$2,ROW(Dejavnost)-MIN(ROW(Dejavnost))+1),ROWS($B$3:B29)))&CHAR(10),\"\")","v":""},null,{"$f":"IFERROR(INDEX(Dejavnost,SMALL(IF(Cilj=$F$2,ROW(Dejavnost)-MIN(ROW(Dejavnost))+1),ROWS($B$3:B29)))&CHAR(10),\"\")","v":""},null,{"$f":"IFERROR(INDEX(Dejavnost,SMALL(IF(Cilj=$H$2,ROW(Dejavnost)-MIN(ROW(Dejavnost))+1),ROWS($B$3:B29)))&CHAR(10),\"\")","v":""}]
[null,{"$f":"IFERROR(INDEX(Dejavnost,SMALL(IF(Cilj=$B$2,ROW(Dejavnost)-MIN(ROW(Dejavnost))+1),ROWS($B$3:B30)))&\" \"&CHAR(10)&(INDEX(Rezultat,SMALL(IF(Cilj=$B$2,ROW(Rezultat)-MIN(ROW(Rezultat))+1),ROWS($B$3:B30))))&CHAR(10),\"\")","v":""},null,{"$f":"IFERROR(INDEX(Dejavnost,SMALL(IF(Cilj=$D$2,ROW(Dejavnost)-MIN(ROW(Dejavnost))+1),ROWS($B$3:B30)))&CHAR(10),\"\")","v":""},null,{"$f":"IFERROR(INDEX(Dejavnost,SMALL(IF(Cilj=$F$2,ROW(Dejavnost)-MIN(ROW(Dejavnost))+1),ROWS($B$3:B30)))&CHAR(10),\"\")","v":""},null,{"$f":"IFERROR(INDEX(Dejavnost,SMALL(IF(Cilj=$H$2,ROW(Dejavnost)-MIN(ROW(Dejavnost))+1),ROWS($B$3:B30)))&CHAR(10),\"\")","v":""}]
[null,{"$f":"IFERROR(INDEX(Dejavnost,SMALL(IF(Cilj=$B$2,ROW(Dejavnost)-MIN(ROW(Dejavnost))+1),ROWS($B$3:B31)))&\" \"&CHAR(10)&(INDEX(Rezultat,SMALL(IF(Cilj=$B$2,ROW(Rezultat)-MIN(ROW(Rezultat))+1),ROWS($B$3:B31))))&CHAR(10),\"\")","v":""},null,{"$f":"IFERROR(INDEX(Dejavnost,SMALL(IF(Cilj=$D$2,ROW(Dejavnost)-MIN(ROW(Dejavnost))+1),ROWS($B$3:B31)))&CHAR(10),\"\")","v":""},null,{"$f":"IFERROR(INDEX(Dejavnost,SMALL(IF(Cilj=$F$2,ROW(Dejavnost)-MIN(ROW(Dejavnost))+1),ROWS($B$3:B31)))&CHAR(10),\"\")","v":""},null,{"$f":"IFERROR(INDEX(Dejavnost,SMALL(IF(Cilj=$H$2,ROW(Dejavnost)-MIN(ROW(Dejavnost))+1),ROWS($B$3:B31)))&CHAR(10),\"\")","v":""}]
[null,{"$f":"IFERROR(INDEX(Dejavnost,SMALL(IF(Cilj=$B$2,ROW(Dejavnost)-MIN(ROW(Dejavnost))+1),ROWS($B$3:B32)))&\" \"&CHAR(10)&(INDEX(Rezultat,SMALL(IF(Cilj=$B$2,ROW(Rezultat)-MIN(ROW(Rezultat))+1),ROWS($B$3:B32))))&CHAR(10),\"\")","v":""},null,{"$f":"IFERROR(INDEX(Dejavnost,SMALL(IF(Cilj=$D$2,ROW(Dejavnost)-MIN(ROW(Dejavnost))+1),ROWS($B$3:B32)))&CHAR(10),\"\")","v":""},null,{"$f":"IFERROR(INDEX(Dejavnost,SMALL(IF(Cilj=$F$2,ROW(Dejavnost)-MIN(ROW(Dejavnost))+1),ROWS($B$3:B32)))&CHAR(10),\"\")","v":""},null,{"$f":"IFERROR(INDEX(Dejavnost,SMALL(IF(Cilj=$H$2,ROW(Dejavnost)-MIN(ROW(Dejavnost))+1),ROWS($B$3:B32)))&CHAR(10),\"\")","v":""}]
[null,{"$f":"IFERROR(INDEX(Dejavnost,SMALL(IF(Cilj=$B$2,ROW(Dejavnost)-MIN(ROW(Dejavnost))+1),ROWS($B$3:B33)))&\" \"&CHAR(10)&(INDEX(Rezultat,SMALL(IF(Cilj=$B$2,ROW(Rezultat)-MIN(ROW(Rezultat))+1),ROWS($B$3:B33))))&CHAR(10),\"\")","v":""},null,{"$f":"IFERROR(INDEX(Dejavnost,SMALL(IF(Cilj=$D$2,ROW(Dejavnost)-MIN(ROW(Dejavnost))+1),ROWS($B$3:B33)))&CHAR(10),\"\")","v":""},null,{"$f":"IFERROR(INDEX(Dejavnost,SMALL(IF(Cilj=$F$2,ROW(Dejavnost)-MIN(ROW(Dejavnost))+1),ROWS($B$3:B33)))&CHAR(10),\"\")","v":""},null,{"$f":"IFERROR(INDEX(Dejavnost,SMALL(IF(Cilj=$H$2,ROW(Dejavnost)-MIN(ROW(Dejavnost))+1),ROWS($B$3:B33)))&CHAR(10),\"\")","v":""}]
[null,{"$f":"IFERROR(INDEX(Dejavnost,SMALL(IF(Cilj=$B$2,ROW(Dejavnost)-MIN(ROW(Dejavnost))+1),ROWS($B$3:B34)))&\" \"&CHAR(10)&(INDEX(Rezultat,SMALL(IF(Cilj=$B$2,ROW(Rezultat)-MIN(ROW(Rezultat))+1),ROWS($B$3:B34))))&CHAR(10),\"\")","v":""},null,{"$f":"IFERROR(INDEX(Dejavnost,SMALL(IF(Cilj=$D$2,ROW(Dejavnost)-MIN(ROW(Dejavnost))+1),ROWS($B$3:B34)))&CHAR(10),\"\")","v":""},null,{"$f":"IFERROR(INDEX(Dejavnost,SMALL(IF(Cilj=$F$2,ROW(Dejavnost)-MIN(ROW(Dejavnost))+1),ROWS($B$3:B34)))&CHAR(10),\"\")","v":""},null,{"$f":"IFERROR(INDEX(Dejavnost,SMALL(IF(Cilj=$H$2,ROW(Dejavnost)-MIN(ROW(Dejavnost))+1),ROWS($B$3:B34)))&CHAR(10),\"\")","v":""}]
[null,{"$f":"IFERROR(INDEX(Dejavnost,SMALL(IF(Cilj=$B$2,ROW(Dejavnost)-MIN(ROW(Dejavnost))+1),ROWS($B$3:B35)))&\" \"&CHAR(10)&(INDEX(Rezultat,SMALL(IF(Cilj=$B$2,ROW(Rezultat)-MIN(ROW(Rezultat))+1),ROWS($B$3:B35))))&CHAR(10),\"\")","v":""},null,{"$f":"IFERROR(INDEX(Dejavnost,SMALL(IF(Cilj=$D$2,ROW(Dejavnost)-MIN(ROW(Dejavnost))+1),ROWS($B$3:B35)))&CHAR(10),\"\")","v":""},null,{"$f":"IFERROR(INDEX(Dejavnost,SMALL(IF(Cilj=$F$2,ROW(Dejavnost)-MIN(ROW(Dejavnost))+1),ROWS($B$3:B35)))&CHAR(10),\"\")","v":""},null,{"$f":"IFERROR(INDEX(Dejavnost,SMALL(IF(Cilj=$H$2,ROW(Dejavnost)-MIN(ROW(Dejavnost))+1),ROWS($B$3:B35)))&CHAR(10),\"\")","v":""}]
[null,{"$f":"IFERROR(INDEX(Dejavnost,SMALL(IF(Cilj=$B$2,ROW(Dejavnost)-MIN(ROW(Dejavnost))+1),ROWS($B$3:B36)))&\" \"&CHAR(10)&(INDEX(Rezultat,SMALL(IF(Cilj=$B$2,ROW(Rezultat)-MIN(ROW(Rezultat))+1),ROWS($B$3:B36))))&CHAR(10),\"\")","v":""},null,{"$f":"IFERROR(INDEX(Dejavnost,SMALL(IF(Cilj=$D$2,ROW(Dejavnost)-MIN(ROW(Dejavnost))+1),ROWS($B$3:B36)))&CHAR(10),\"\")","v":""},null,{"$f":"IFERROR(INDEX(Dejavnost,SMALL(IF(Cilj=$F$2,ROW(Dejavnost)-MIN(ROW(Dejavnost))+1),ROWS($B$3:B36)))&CHAR(10),\"\")","v":""},null,{"$f":"IFERROR(INDEX(Dejavnost,SMALL(IF(Cilj=$H$2,ROW(Dejavnost)-MIN(ROW(Dejavnost))+1),ROWS($B$3:B36)))&CHAR(10),\"\")","v":""}]
[null,{"$f":"IFERROR(INDEX(Dejavnost,SMALL(IF(Cilj=$B$2,ROW(Dejavnost)-MIN(ROW(Dejavnost))+1),ROWS($B$3:B37)))&\" \"&CHAR(10)&(INDEX(Rezultat,SMALL(IF(Cilj=$B$2,ROW(Rezultat)-MIN(ROW(Rezultat))+1),ROWS($B$3:B37))))&CHAR(10),\"\")","v":""},null,{"$f":"IFERROR(INDEX(Dejavnost,SMALL(IF(Cilj=$D$2,ROW(Dejavnost)-MIN(ROW(Dejavnost))+1),ROWS($B$3:B37)))&CHAR(10),\"\")","v":""},null,{"$f":"IFERROR(INDEX(Dejavnost,SMALL(IF(Cilj=$F$2,ROW(Dejavnost)-MIN(ROW(Dejavnost))+1),ROWS($B$3:B37)))&CHAR(10),\"\")","v":""},null,{"$f":"IFERROR(INDEX(Dejavnost,SMALL(IF(Cilj=$H$2,ROW(Dejavnost)-MIN(ROW(Dejavnost))+1),ROWS($B$3:B37)))&CHAR(10),\"\")","v":""}]
[null,{"$f":"IFERROR(INDEX(Dejavnost,SMALL(IF(Cilj=$B$2,ROW(Dejavnost)-MIN(ROW(Dejavnost))+1),ROWS($B$3:B38)))&\" \"&CHAR(10)&(INDEX(Rezultat,SMALL(IF(Cilj=$B$2,ROW(Rezultat)-MIN(ROW(Rezultat))+1),ROWS($B$3:B38))))&CHAR(10),\"\")","v":""},null,{"$f":"IFERROR(INDEX(Dejavnost,SMALL(IF(Cilj=$D$2,ROW(Dejavnost)-MIN(ROW(Dejavnost))+1),ROWS($B$3:B38)))&CHAR(10),\"\")","v":""},null,{"$f":"IFERROR(INDEX(Dejavnost,SMALL(IF(Cilj=$F$2,ROW(Dejavnost)-MIN(ROW(Dejavnost))+1),ROWS($B$3:B38)))&CHAR(10),\"\")","v":""},null,{"$f":"IFERROR(INDEX(Dejavnost,SMALL(IF(Cilj=$H$2,ROW(Dejavnost)-MIN(ROW(Dejavnost))+1),ROWS($B$3:B38)))&CHAR(10),\"\")","v":""}]
[null,{"$f":"IFERROR(INDEX(Dejavnost,SMALL(IF(Cilj=$B$2,ROW(Dejavnost)-MIN(ROW(Dejavnost))+1),ROWS($B$3:B39)))&\" \"&CHAR(10)&(INDEX(Rezultat,SMALL(IF(Cilj=$B$2,ROW(Rezultat)-MIN(ROW(Rezultat))+1),ROWS($B$3:B39))))&CHAR(10),\"\")","v":""},null,{"$f":"IFERROR(INDEX(Dejavnost,SMALL(IF(Cilj=$D$2,ROW(Dejavnost)-MIN(ROW(Dejavnost))+1),ROWS($B$3:B39)))&CHAR(10),\"\")","v":""},null,{"$f":"IFERROR(INDEX(Dejavnost,SMALL(IF(Cilj=$F$2,ROW(Dejavnost)-MIN(ROW(Dejavnost))+1),ROWS($B$3:B39)))&CHAR(10),\"\")","v":""},null,{"$f":"IFERROR(INDEX(Dejavnost,SMALL(IF(Cilj=$H$2,ROW(Dejavnost)-MIN(ROW(Dejavnost))+1),ROWS($B$3:B39)))&CHAR(10),\"\")","v":""}]
[null,{"$f":"IFERROR(INDEX(Dejavnost,SMALL(IF(Cilj=$B$2,ROW(Dejavnost)-MIN(ROW(Dejavnost))+1),ROWS($B$3:B40)))&\" \"&CHAR(10)&(INDEX(Rezultat,SMALL(IF(Cilj=$B$2,ROW(Rezultat)-MIN(ROW(Rezultat))+1),ROWS($B$3:B40))))&CHAR(10),\"\")","v":""},null,{"$f":"IFERROR(INDEX(Dejavnost,SMALL(IF(Cilj=$D$2,ROW(Dejavnost)-MIN(ROW(Dejavnost))+1),ROWS($B$3:B40)))&CHAR(10),\"\")","v":""},null,{"$f":"IFERROR(INDEX(Dejavnost,SMALL(IF(Cilj=$F$2,ROW(Dejavnost)-MIN(ROW(Dejavnost))+1),ROWS($B$3:B40)))&CHAR(10),\"\")","v":""},null,{"$f":"IFERROR(INDEX(Dejavnost,SMALL(IF(Cilj=$H$2,ROW(Dejavnost)-MIN(ROW(Dejavnost))+1),ROWS($B$3:B40)))&CHAR(10),\"\")","v":""}]
[null,{"$f":"IFERROR(INDEX(Dejavnost,SMALL(IF(Cilj=$B$2,ROW(Dejavnost)-MIN(ROW(Dejavnost))+1),ROWS($B$3:B41)))&\" \"&CHAR(10)&(INDEX(Rezultat,SMALL(IF(Cilj=$B$2,ROW(Rezultat)-MIN(ROW(Rezultat))+1),ROWS($B$3:B41))))&CHAR(10),\"\")","v":""},null,{"$f":"IFERROR(INDEX(Dejavnost,SMALL(IF(Cilj=$D$2,ROW(Dejavnost)-MIN(ROW(Dejavnost))+1),ROWS($B$3:B41)))&CHAR(10),\"\")","v":""},null,{"$f":"IFERROR(INDEX(Dejavnost,SMALL(IF(Cilj=$F$2,ROW(Dejavnost)-MIN(ROW(Dejavnost))+1),ROWS($B$3:B41)))&CHAR(10),\"\")","v":""},null,{"$f":"IFERROR(INDEX(Dejavnost,SMALL(IF(Cilj=$H$2,ROW(Dejavnost)-MIN(ROW(Dejavnost))+1),ROWS($B$3:B41)))&CHAR(10),\"\")","v":""}]
[null,{"$f":"IFERROR(INDEX(Dejavnost,SMALL(IF(Cilj=$B$2,ROW(Dejavnost)-MIN(ROW(Dejavnost))+1),ROWS($B$3:B42)))&\" \"&CHAR(10)&(INDEX(Rezultat,SMALL(IF(Cilj=$B$2,ROW(Rezultat)-MIN(ROW(Rezultat))+1),ROWS($B$3:B42))))&CHAR(10),\"\")","v":""},null,{"$f":"IFERROR(INDEX(Dejavnost,SMALL(IF(Cilj=$D$2,ROW(Dejavnost)-MIN(ROW(Dejavnost))+1),ROWS($B$3:B42)))&CHAR(10),\"\")","v":""},null,{"$f":"IFERROR(INDEX(Dejavnost,SMALL(IF(Cilj=$F$2,ROW(Dejavnost)-MIN(ROW(Dejavnost))+1),ROWS($B$3:B42)))&CHAR(10),\"\")","v":""},null,{"$f":"IFERROR(INDEX(Dejavnost,SMALL(IF(Cilj=$H$2,ROW(Dejavnost)-MIN(ROW(Dejavnost))+1),ROWS($B$3:B42)))&CHAR(10),\"\")","v":""}]
[null,{"$f":"IFERROR(INDEX(Dejavnost,SMALL(IF(Cilj=$B$2,ROW(Dejavnost)-MIN(ROW(Dejavnost))+1),ROWS($B$3:B43)))&\" \"&CHAR(10)&(INDEX(Rezultat,SMALL(IF(Cilj=$B$2,ROW(Rezultat)-MIN(ROW(Rezultat))+1),ROWS($B$3:B43))))&CHAR(10),\"\")","v":""},null,{"$f":"IFERROR(INDEX(Dejavnost,SMALL(IF(Cilj=$D$2,ROW(Dejavnost)-MIN(ROW(Dejavnost))+1),ROWS($B$3:B43)))&CHAR(10),\"\")","v":""},null,{"$f":"IFERROR(INDEX(Dejavnost,SMALL(IF(Cilj=$F$2,ROW(Dejavnost)-MIN(ROW(Dejavnost))+1),ROWS($B$3:B43)))&CHAR(10),\"\")","v":""},null,{"$f":"IFERROR(INDEX(Dejavnost,SMALL(IF(Cilj=$H$2,ROW(Dejavnost)-MIN(ROW(Dejavnost))+1),ROWS($B$3:B43)))&CHAR(10),\"\")","v":""}]
[null,{"$f":"IFERROR(INDEX(Dejavnost,SMALL(IF(Cilj=$B$2,ROW(Dejavnost)-MIN(ROW(Dejavnost))+1),ROWS($B$3:B44)))&\" \"&CHAR(10)&(INDEX(Rezultat,SMALL(IF(Cilj=$B$2,ROW(Rezultat)-MIN(ROW(Rezultat))+1),ROWS($B$3:B44))))&CHAR(10),\"\")","v":""},null,{"$f":"IFERROR(INDEX(Dejavnost,SMALL(IF(Cilj=$D$2,ROW(Dejavnost)-MIN(ROW(Dejavnost))+1),ROWS($B$3:B44)))&CHAR(10),\"\")","v":""},null,{"$f":"IFERROR(INDEX(Dejavnost,SMALL(IF(Cilj=$F$2,ROW(Dejavnost)-MIN(ROW(Dejavnost))+1),ROWS($B$3:B44)))&CHAR(10),\"\")","v":""},null,{"$f":"IFERROR(INDEX(Dejavnost,SMALL(IF(Cilj=$H$2,ROW(Dejavnost)-MIN(ROW(Dejavnost))+1),ROWS($B$3:B44)))&CHAR(10),\"\")","v":""}]
[null,{"$f":"IFERROR(INDEX(Dejavnost,SMALL(IF(Cilj=$B$2,ROW(Dejavnost)-MIN(ROW(Dejavnost))+1),ROWS($B$3:B45)))&\" \"&CHAR(10)&(INDEX(Rezultat,SMALL(IF(Cilj=$B$2,ROW(Rezultat)-MIN(ROW(Rezultat))+1),ROWS($B$3:B45))))&CHAR(10),\"\")","v":""},null,{"$f":"IFERROR(INDEX(Dejavnost,SMALL(IF(Cilj=$D$2,ROW(Dejavnost)-MIN(ROW(Dejavnost))+1),ROWS($B$3:B45)))&CHAR(10),\"\")","v":""},null,{"$f":"IFERROR(INDEX(Dejavnost,SMALL(IF(Cilj=$F$2,ROW(Dejavnost)-MIN(ROW(Dejavnost))+1),ROWS($B$3:B45)))&CHAR(10),\"\")","v":""},null,{"$f":"IFERROR(INDEX(Dejavnost,SMALL(IF(Cilj=$H$2,ROW(Dejavnost)-MIN(ROW(Dejavnost))+1),ROWS($B$3:B45)))&CHAR(10),\"\")","v":""}]
[null,{"$f":"IFERROR(INDEX(Dejavnost,SMALL(IF(Cilj=$B$2,ROW(Dejavnost)-MIN(ROW(Dejavnost))+1),ROWS($B$3:B46)))&\" \"&CHAR(10)&(INDEX(Rezultat,SMALL(IF(Cilj=$B$2,ROW(Rezultat)-MIN(ROW(Rezultat))+1),ROWS($B$3:B46))))&CHAR(10),\"\")","v":""},null,{"$f":"IFERROR(INDEX(Dejavnost,SMALL(IF(Cilj=$D$2,ROW(Dejavnost)-MIN(ROW(Dejavnost))+1),ROWS($B$3:B46)))&CHAR(10),\"\")","v":""},null,{"$f":"IFERROR(INDEX(Dejavnost,SMALL(IF(Cilj=$F$2,ROW(Dejavnost)-MIN(ROW(Dejavnost))+1),ROWS($B$3:B46)))&CHAR(10),\"\")","v":""},null,{"$f":"IFERROR(INDEX(Dejavnost,SMALL(IF(Cilj=$H$2,ROW(Dejavnost)-MIN(ROW(Dejavnost))+1),ROWS($B$3:B46)))&CHAR(10),\"\")","v":""}]
[null,{"$f":"IFERROR(INDEX(Dejavnost,SMALL(IF(Cilj=$B$2,ROW(Dejavnost)-MIN(ROW(Dejavnost))+1),ROWS($B$3:B47)))&\" \"&CHAR(10)&(INDEX(Rezultat,SMALL(IF(Cilj=$B$2,ROW(Rezultat)-MIN(ROW(Rezultat))+1),ROWS($B$3:B47))))&CHAR(10),\"\")","v":""},null,{"$f":"IFERROR(INDEX(Dejavnost,SMALL(IF(Cilj=$D$2,ROW(Dejavnost)-MIN(ROW(Dejavnost))+1),ROWS($B$3:B47)))&CHAR(10),\"\")","v":""},null,{"$f":"IFERROR(INDEX(Dejavnost,SMALL(IF(Cilj=$F$2,ROW(Dejavnost)-MIN(ROW(Dejavnost))+1),ROWS($B$3:B47)))&CHAR(10),\"\")","v":""},null,{"$f":"IFERROR(INDEX(Dejavnost,SMALL(IF(Cilj=$H$2,ROW(Dejavnost)-MIN(ROW(Dejavnost))+1),ROWS($B$3:B47)))&CHAR(10),\"\")","v":""}]
[null,{"$f":"IFERROR(INDEX(Dejavnost,SMALL(IF(Cilj=$B$2,ROW(Dejavnost)-MIN(ROW(Dejavnost))+1),ROWS($B$3:B48)))&\" \"&CHAR(10)&(INDEX(Rezultat,SMALL(IF(Cilj=$B$2,ROW(Rezultat)-MIN(ROW(Rezultat))+1),ROWS($B$3:B48))))&CHAR(10),\"\")","v":""},null,{"$f":"IFERROR(INDEX(Dejavnost,SMALL(IF(Cilj=$D$2,ROW(Dejavnost)-MIN(ROW(Dejavnost))+1),ROWS($B$3:B48)))&CHAR(10),\"\")","v":""},null,{"$f":"IFERROR(INDEX(Dejavnost,SMALL(IF(Cilj=$F$2,ROW(Dejavnost)-MIN(ROW(Dejavnost))+1),ROWS($B$3:B48)))&CHAR(10),\"\")","v":""},null,{"$f":"IFERROR(INDEX(Dejavnost,SMALL(IF(Cilj=$H$2,ROW(Dejavnost)-MIN(ROW(Dejavnost))+1),ROWS($B$3:B48)))&CHAR(10),\"\")","v":""}]
[null,{"$f":"IFERROR(INDEX(Dejavnost,SMALL(IF(Cilj=$B$2,ROW(Dejavnost)-MIN(ROW(Dejavnost))+1),ROWS($B$3:B49)))&\" \"&CHAR(10)&(INDEX(Rezultat,SMALL(IF(Cilj=$B$2,ROW(Rezultat)-MIN(ROW(Rezultat))+1),ROWS($B$3:B49))))&CHAR(10),\"\")","v":""},null,{"$f":"IFERROR(INDEX(Dejavnost,SMALL(IF(Cilj=$D$2,ROW(Dejavnost)-MIN(ROW(Dejavnost))+1),ROWS($B$3:B49)))&CHAR(10),\"\")","v":""},null,{"$f":"IFERROR(INDEX(Dejavnost,SMALL(IF(Cilj=$F$2,ROW(Dejavnost)-MIN(ROW(Dejavnost))+1),ROWS($B$3:B49)))&CHAR(10),\"\")","v":""},null,{"$f":"IFERROR(INDEX(Dejavnost,SMALL(IF(Cilj=$H$2,ROW(Dejavnost)-MIN(ROW(Dejavnost))+1),ROWS($B$3:B49)))&CHAR(10),\"\")","v":""}]
[null,{"$f":"IFERROR(INDEX(Dejavnost,SMALL(IF(Cilj=$B$2,ROW(Dejavnost)-MIN(ROW(Dejavnost))+1),ROWS($B$3:B50)))&\" \"&CHAR(10)&(INDEX(Rezultat,SMALL(IF(Cilj=$B$2,ROW(Rezultat)-MIN(ROW(Rezultat))+1),ROWS($B$3:B50))))&CHAR(10),\"\")","v":""},null,{"$f":"IFERROR(INDEX(Dejavnost,SMALL(IF(Cilj=$D$2,ROW(Dejavnost)-MIN(ROW(Dejavnost))+1),ROWS($B$3:B50)))&CHAR(10),\"\")","v":""},null,{"$f":"IFERROR(INDEX(Dejavnost,SMALL(IF(Cilj=$F$2,ROW(Dejavnost)-MIN(ROW(Dejavnost))+1),ROWS($B$3:B50)))&CHAR(10),\"\")","v":""},null,{"$f":"IFERROR(INDEX(Dejavnost,SMALL(IF(Cilj=$H$2,ROW(Dejavnost)-MIN(ROW(Dejavnost))+1),ROWS($B$3:B50)))&CHAR(10),\"\")","v":""}]
[null,{"$f":"IFERROR(INDEX(Dejavnost,SMALL(IF(Cilj=$B$2,ROW(Dejavnost)-MIN(ROW(Dejavnost))+1),ROWS($B$3:B51)))&\" \"&CHAR(10)&(INDEX(Rezultat,SMALL(IF(Cilj=$B$2,ROW(Rezultat)-MIN(ROW(Rezultat))+1),ROWS($B$3:B51))))&CHAR(10),\"\")","v":""},null,{"$f":"IFERROR(INDEX(Dejavnost,SMALL(IF(Cilj=$D$2,ROW(Dejavnost)-MIN(ROW(Dejavnost))+1),ROWS($B$3:B51)))&CHAR(10),\"\")","v":""},null,{"$f":"IFERROR(INDEX(Dejavnost,SMALL(IF(Cilj=$F$2,ROW(Dejavnost)-MIN(ROW(Dejavnost))+1),ROWS($B$3:B51)))&CHAR(10),\"\")","v":""},null,{"$f":"IFERROR(INDEX(Dejavnost,SMALL(IF(Cilj=$H$2,ROW(Dejavnost)-MIN(ROW(Dejavnost))+1),ROWS($B$3:B51)))&CHAR(10),\"\")","v":""}]
[null,{"$f":"IFERROR(INDEX(Dejavnost,SMALL(IF(Cilj=$B$2,ROW(Dejavnost)-MIN(ROW(Dejavnost))+1),ROWS($B$3:B52)))&\" \"&CHAR(10)&(INDEX(Rezultat,SMALL(IF(Cilj=$B$2,ROW(Rezultat)-MIN(ROW(Rezultat))+1),ROWS($B$3:B52))))&CHAR(10),\"\")","v":""},null,{"$f":"IFERROR(INDEX(Dejavnost,SMALL(IF(Cilj=$D$2,ROW(Dejavnost)-MIN(ROW(Dejavnost))+1),ROWS($B$3:B52)))&CHAR(10),\"\")","v":""},null,{"$f":"IFERROR(INDEX(Dejavnost,SMALL(IF(Cilj=$F$2,ROW(Dejavnost)-MIN(ROW(Dejavnost))+1),ROWS($B$3:B52)))&CHAR(10),\"\")","v":""},null,{"$f":"IFERROR(INDEX(Dejavnost,SMALL(IF(Cilj=$H$2,ROW(Dejavnost)-MIN(ROW(Dejavnost))+1),ROWS($B$3:B52)))&CHAR(10),\"\")","v":""}]
[null,{"$f":"IFERROR(INDEX(Dejavnost,SMALL(IF(Cilj=$B$2,ROW(Dejavnost)-MIN(ROW(Dejavnost))+1),ROWS($B$3:B53)))&\" \"&CHAR(10)&(INDEX(Rezultat,SMALL(IF(Cilj=$B$2,ROW(Rezultat)-MIN(ROW(Rezultat))+1),ROWS($B$3:B53))))&CHAR(10),\"\")","v":""},null,{"$f":"IFERROR(INDEX(Dejavnost,SMALL(IF(Cilj=$D$2,ROW(Dejavnost)-MIN(ROW(Dejavnost))+1),ROWS($B$3:B53)))&CHAR(10),\"\")","v":""},null,{"$f":"IFERROR(INDEX(Dejavnost,SMALL(IF(Cilj=$F$2,ROW(Dejavnost)-MIN(ROW(Dejavnost))+1),ROWS($B$3:B53)))&CHAR(10),\"\")","v":""},null,{"$f":"IFERROR(INDEX(Dejavnost,SMALL(IF(Cilj=$H$2,ROW(Dejavnost)-MIN(ROW(Dejavnost))+1),ROWS($B$3:B53)))&CHAR(10),\"\")","v":""}]
[null,{"$f":"IFERROR(INDEX(Dejavnost,SMALL(IF(Cilj=$B$2,ROW(Dejavnost)-MIN(ROW(Dejavnost))+1),ROWS($B$3:B54)))&\" \"&CHAR(10)&(INDEX(Rezultat,SMALL(IF(Cilj=$B$2,ROW(Rezultat)-MIN(ROW(Rezultat))+1),ROWS($B$3:B54))))&CHAR(10),\"\")","v":""},null,{"$f":"IFERROR(INDEX(Dejavnost,SMALL(IF(Cilj=$D$2,ROW(Dejavnost)-MIN(ROW(Dejavnost))+1),ROWS($B$3:B54)))&CHAR(10),\"\")","v":""},null,{"$f":"IFERROR(INDEX(Dejavnost,SMALL(IF(Cilj=$F$2,ROW(Dejavnost)-MIN(ROW(Dejavnost))+1),ROWS($B$3:B54)))&CHAR(10),\"\")","v":""},null,{"$f":"IFERROR(INDEX(Dejavnost,SMALL(IF(Cilj=$H$2,ROW(Dejavnost)-MIN(ROW(Dejavnost))+1),ROWS($B$3:B54)))&CHAR(10),\"\")","v":""}]
[null,{"$f":"IFERROR(INDEX(Dejavnost,SMALL(IF(Cilj=$B$2,ROW(Dejavnost)-MIN(ROW(Dejavnost))+1),ROWS($B$3:B55)))&\" \"&CHAR(10)&(INDEX(Rezultat,SMALL(IF(Cilj=$B$2,ROW(Rezultat)-MIN(ROW(Rezultat))+1),ROWS($B$3:B55))))&CHAR(10),\"\")","v":""},null,{"$f":"IFERROR(INDEX(Dejavnost,SMALL(IF(Cilj=$D$2,ROW(Dejavnost)-MIN(ROW(Dejavnost))+1),ROWS($B$3:B55)))&CHAR(10),\"\")","v":""},null,{"$f":"IFERROR(INDEX(Dejavnost,SMALL(IF(Cilj=$F$2,ROW(Dejavnost)-MIN(ROW(Dejavnost))+1),ROWS($B$3:B55)))&CHAR(10),\"\")","v":""},null,{"$f":"IFERROR(INDEX(Dejavnost,SMALL(IF(Cilj=$H$2,ROW(Dejavnost)-MIN(ROW(Dejavnost))+1),ROWS($B$3:B55)))&CHAR(10),\"\")","v":""}]
[null,{"$f":"IFERROR(INDEX(Dejavnost,SMALL(IF(Cilj=$B$2,ROW(Dejavnost)-MIN(ROW(Dejavnost))+1),ROWS($B$3:B56)))&\" \"&CHAR(10)&(INDEX(Rezultat,SMALL(IF(Cilj=$B$2,ROW(Rezultat)-MIN(ROW(Rezultat))+1),ROWS($B$3:B56))))&CHAR(10),\"\")","v":""},null,{"$f":"IFERROR(INDEX(Dejavnost,SMALL(IF(Cilj=$D$2,ROW(Dejavnost)-MIN(ROW(Dejavnost))+1),ROWS($B$3:B56)))&CHAR(10),\"\")","v":""},null,{"$f":"IFERROR(INDEX(Dejavnost,SMALL(IF(Cilj=$F$2,ROW(Dejavnost)-MIN(ROW(Dejavnost))+1),ROWS($B$3:B56)))&CHAR(10),\"\")","v":""},null,{"$f":"IFERROR(INDEX(Dejavnost,SMALL(IF(Cilj=$H$2,ROW(Dejavnost)-MIN(ROW(Dejavnost))+1),ROWS($B$3:B56)))&CHAR(10),\"\")","v":""}]
[null,{"$f":"IFERROR(INDEX(Dejavnost,SMALL(IF(Cilj=$B$2,ROW(Dejavnost)-MIN(ROW(Dejavnost))+1),ROWS($B$3:B57)))&\" \"&CHAR(10)&(INDEX(Rezultat,SMALL(IF(Cilj=$B$2,ROW(Rezultat)-MIN(ROW(Rezultat))+1),ROWS($B$3:B57))))&CHAR(10),\"\")","v":""},null,{"$f":"IFERROR(INDEX(Dejavnost,SMALL(IF(Cilj=$D$2,ROW(Dejavnost)-MIN(ROW(Dejavnost))+1),ROWS($B$3:B57)))&CHAR(10),\"\")","v":""},null,{"$f":"IFERROR(INDEX(Dejavnost,SMALL(IF(Cilj=$F$2,ROW(Dejavnost)-MIN(ROW(Dejavnost))+1),ROWS($B$3:B57)))&CHAR(10),\"\")","v":""},null,{"$f":"IFERROR(INDEX(Dejavnost,SMALL(IF(Cilj=$H$2,ROW(Dejavnost)-MIN(ROW(Dejavnost))+1),ROWS($B$3:B57)))&CHAR(10),\"\")","v":""}]
[null,{"$f":"IFERROR(INDEX(Dejavnost,SMALL(IF(Cilj=$B$2,ROW(Dejavnost)-MIN(ROW(Dejavnost))+1),ROWS($B$3:B58)))&\" \"&CHAR(10)&(INDEX(Rezultat,SMALL(IF(Cilj=$B$2,ROW(Rezultat)-MIN(ROW(Rezultat))+1),ROWS($B$3:B58))))&CHAR(10),\"\")","v":""},null,{"$f":"IFERROR(INDEX(Dejavnost,SMALL(IF(Cilj=$D$2,ROW(Dejavnost)-MIN(ROW(Dejavnost))+1),ROWS($B$3:B58)))&CHAR(10),\"\")","v":""},null,{"$f":"IFERROR(INDEX(Dejavnost,SMALL(IF(Cilj=$F$2,ROW(Dejavnost)-MIN(ROW(Dejavnost))+1),ROWS($B$3:B58)))&CHAR(10),\"\")","v":""},null,{"$f":"IFERROR(INDEX(Dejavnost,SMALL(IF(Cilj=$H$2,ROW(Dejavnost)-MIN(ROW(Dejavnost))+1),ROWS($B$3:B58)))&CHAR(10),\"\")","v":""}]
[null,{"$f":"IFERROR(INDEX(Dejavnost,SMALL(IF(Cilj=$B$2,ROW(Dejavnost)-MIN(ROW(Dejavnost))+1),ROWS($B$3:B59)))&\" \"&CHAR(10)&(INDEX(Rezultat,SMALL(IF(Cilj=$B$2,ROW(Rezultat)-MIN(ROW(Rezultat))+1),ROWS($B$3:B59))))&CHAR(10),\"\")","v":""},null,{"$f":"IFERROR(INDEX(Dejavnost,SMALL(IF(Cilj=$D$2,ROW(Dejavnost)-MIN(ROW(Dejavnost))+1),ROWS($B$3:B59)))&CHAR(10),\"\")","v":""},null,{"$f":"IFERROR(INDEX(Dejavnost,SMALL(IF(Cilj=$F$2,ROW(Dejavnost)-MIN(ROW(Dejavnost))+1),ROWS($B$3:B59)))&CHAR(10),\"\")","v":""},null,{"$f":"IFERROR(INDEX(Dejavnost,SMALL(IF(Cilj=$H$2,ROW(Dejavnost)-MIN(ROW(Dejavnost))+1),ROWS($B$3:B59)))&CHAR(10),\"\")","v":""}]
[null,{"$f":"IFERROR(INDEX(Dejavnost,SMALL(IF(Cilj=$B$2,ROW(Dejavnost)-MIN(ROW(Dejavnost))+1),ROWS($B$3:B60)))&\" \"&CHAR(10)&(INDEX(Rezultat,SMALL(IF(Cilj=$B$2,ROW(Rezultat)-MIN(ROW(Rezultat))+1),ROWS($B$3:B60))))&CHAR(10),\"\")","v":""},null,{"$f":"IFERROR(INDEX(Dejavnost,SMALL(IF(Cilj=$D$2,ROW(Dejavnost)-MIN(ROW(Dejavnost))+1),ROWS($B$3:B60)))&CHAR(10),\"\")","v":""},null,{"$f":"IFERROR(INDEX(Dejavnost,SMALL(IF(Cilj=$F$2,ROW(Dejavnost)-MIN(ROW(Dejavnost))+1),ROWS($B$3:B60)))&CHAR(10),\"\")","v":""},null,{"$f":"IFERROR(INDEX(Dejavnost,SMALL(IF(Cilj=$H$2,ROW(Dejavnost)-MIN(ROW(Dejavnost))+1),ROWS($B$3:B60)))&CHAR(10),\"\")","v":""}]
[null,{"$f":"IFERROR(INDEX(Dejavnost,SMALL(IF(Cilj=$B$2,ROW(Dejavnost)-MIN(ROW(Dejavnost))+1),ROWS($B$3:B61)))&\" \"&CHAR(10)&(INDEX(Rezultat,SMALL(IF(Cilj=$B$2,ROW(Rezultat)-MIN(ROW(Rezultat))+1),ROWS($B$3:B61))))&CHAR(10),\"\")","v":""},null,{"$f":"IFERROR(INDEX(Dejavnost,SMALL(IF(Cilj=$D$2,ROW(Dejavnost)-MIN(ROW(Dejavnost))+1),ROWS($B$3:B61)))&CHAR(10),\"\")","v":""},null,{"$f":"IFERROR(INDEX(Dejavnost,SMALL(IF(Cilj=$F$2,ROW(Dejavnost)-MIN(ROW(Dejavnost))+1),ROWS($B$3:B61)))&CHAR(10),\"\")","v":""},null,{"$f":"IFERROR(INDEX(Dejavnost,SMALL(IF(Cilj=$H$2,ROW(Dejavnost)-MIN(ROW(Dejavnost))+1),ROWS($B$3:B61)))&CHAR(10),\"\")","v":""}]
[null,{"$f":"IFERROR(INDEX(Dejavnost,SMALL(IF(Cilj=$B$2,ROW(Dejavnost)-MIN(ROW(Dejavnost))+1),ROWS($B$3:B62)))&\" \"&CHAR(10)&(INDEX(Rezultat,SMALL(IF(Cilj=$B$2,ROW(Rezultat)-MIN(ROW(Rezultat))+1),ROWS($B$3:B62))))&CHAR(10),\"\")","v":""},null,{"$f":"IFERROR(INDEX(Dejavnost,SMALL(IF(Cilj=$D$2,ROW(Dejavnost)-MIN(ROW(Dejavnost))+1),ROWS($B$3:B62)))&CHAR(10),\"\")","v":""},null,{"$f":"IFERROR(INDEX(Dejavnost,SMALL(IF(Cilj=$F$2,ROW(Dejavnost)-MIN(ROW(Dejavnost))+1),ROWS($B$3:B62)))&CHAR(10),\"\")","v":""},null,{"$f":"IFERROR(INDEX(Dejavnost,SMALL(IF(Cilj=$H$2,ROW(Dejavnost)-MIN(ROW(Dejavnost))+1),ROWS($B$3:B62)))&CHAR(10),\"\")","v":""}]
[null,{"$f":"IFERROR(INDEX(Dejavnost,SMALL(IF(Cilj=$B$2,ROW(Dejavnost)-MIN(ROW(Dejavnost))+1),ROWS($B$3:B63)))&\" \"&CHAR(10)&(INDEX(Rezultat,SMALL(IF(Cilj=$B$2,ROW(Rezultat)-MIN(ROW(Rezultat))+1),ROWS($B$3:B63))))&CHAR(10),\"\")","v":""},null,{"$f":"IFERROR(INDEX(Dejavnost,SMALL(IF(Cilj=$D$2,ROW(Dejavnost)-MIN(ROW(Dejavnost))+1),ROWS($B$3:B63)))&CHAR(10),\"\")","v":""},null,{"$f":"IFERROR(INDEX(Dejavnost,SMALL(IF(Cilj=$F$2,ROW(Dejavnost)-MIN(ROW(Dejavnost))+1),ROWS($B$3:B63)))&CHAR(10),\"\")","v":""},null,{"$f":"IFERROR(INDEX(Dejavnost,SMALL(IF(Cilj=$H$2,ROW(Dejavnost)-MIN(ROW(Dejavnost))+1),ROWS($B$3:B63)))&CHAR(10),\"\")","v":""}]
[null,{"$f":"IFERROR(INDEX(Dejavnost,SMALL(IF(Cilj=$B$2,ROW(Dejavnost)-MIN(ROW(Dejavnost))+1),ROWS($B$3:B64)))&\" \"&CHAR(10)&(INDEX(Rezultat,SMALL(IF(Cilj=$B$2,ROW(Rezultat)-MIN(ROW(Rezultat))+1),ROWS($B$3:B64))))&CHAR(10),\"\")","v":""},null,{"$f":"IFERROR(INDEX(Dejavnost,SMALL(IF(Cilj=$D$2,ROW(Dejavnost)-MIN(ROW(Dejavnost))+1),ROWS($B$3:B64)))&CHAR(10),\"\")","v":""},null,{"$f":"IFERROR(INDEX(Dejavnost,SMALL(IF(Cilj=$F$2,ROW(Dejavnost)-MIN(ROW(Dejavnost))+1),ROWS($B$3:B64)))&CHAR(10),\"\")","v":""},null,{"$f":"IFERROR(INDEX(Dejavnost,SMALL(IF(Cilj=$H$2,ROW(Dejavnost)-MIN(ROW(Dejavnost))+1),ROWS($B$3:B64)))&CHAR(10),\"\")","v":""}]
[null,{"$f":"IFERROR(INDEX(Dejavnost,SMALL(IF(Cilj=$B$2,ROW(Dejavnost)-MIN(ROW(Dejavnost))+1),ROWS($B$3:B65)))&\" \"&CHAR(10)&(INDEX(Rezultat,SMALL(IF(Cilj=$B$2,ROW(Rezultat)-MIN(ROW(Rezultat))+1),ROWS($B$3:B65))))&CHAR(10),\"\")","v":""},null,{"$f":"IFERROR(INDEX(Dejavnost,SMALL(IF(Cilj=$D$2,ROW(Dejavnost)-MIN(ROW(Dejavnost))+1),ROWS($B$3:B65)))&CHAR(10),\"\")","v":""},null,{"$f":"IFERROR(INDEX(Dejavnost,SMALL(IF(Cilj=$F$2,ROW(Dejavnost)-MIN(ROW(Dejavnost))+1),ROWS($B$3:B65)))&CHAR(10),\"\")","v":""},null,{"$f":"IFERROR(INDEX(Dejavnost,SMALL(IF(Cilj=$H$2,ROW(Dejavnost)-MIN(ROW(Dejavnost))+1),ROWS($B$3:B65)))&CHAR(10),\"\")","v":""}]
[null,{"$f":"IFERROR(INDEX(Dejavnost,SMALL(IF(Cilj=$B$2,ROW(Dejavnost)-MIN(ROW(Dejavnost))+1),ROWS($B$3:B66)))&\" \"&CHAR(10)&(INDEX(Rezultat,SMALL(IF(Cilj=$B$2,ROW(Rezultat)-MIN(ROW(Rezultat))+1),ROWS($B$3:B66))))&CHAR(10),\"\")","v":""},null,{"$f":"IFERROR(INDEX(Dejavnost,SMALL(IF(Cilj=$D$2,ROW(Dejavnost)-MIN(ROW(Dejavnost))+1),ROWS($B$3:B66)))&CHAR(10),\"\")","v":""},null,{"$f":"IFERROR(INDEX(Dejavnost,SMALL(IF(Cilj=$F$2,ROW(Dejavnost)-MIN(ROW(Dejavnost))+1),ROWS($B$3:B66)))&CHAR(10),\"\")","v":""},null,{"$f":"IFERROR(INDEX(Dejavnost,SMALL(IF(Cilj=$H$2,ROW(Dejavnost)-MIN(ROW(Dejavnost))+1),ROWS($B$3:B66)))&CHAR(10),\"\")","v":""}]
[null,{"$f":"IFERROR(INDEX(Dejavnost,SMALL(IF(Cilj=$B$2,ROW(Dejavnost)-MIN(ROW(Dejavnost))+1),ROWS($B$3:B67)))&\" \"&CHAR(10)&(INDEX(Rezultat,SMALL(IF(Cilj=$B$2,ROW(Rezultat)-MIN(ROW(Rezultat))+1),ROWS($B$3:B67))))&CHAR(10),\"\")","v":""},null,{"$f":"IFERROR(INDEX(Dejavnost,SMALL(IF(Cilj=$D$2,ROW(Dejavnost)-MIN(ROW(Dejavnost))+1),ROWS($B$3:B67)))&CHAR(10),\"\")","v":""},null,{"$f":"IFERROR(INDEX(Dejavnost,SMALL(IF(Cilj=$F$2,ROW(Dejavnost)-MIN(ROW(Dejavnost))+1),ROWS($B$3:B67)))&CHAR(10),\"\")","v":""},null,{"$f":"IFERROR(INDEX(Dejavnost,SMALL(IF(Cilj=$H$2,ROW(Dejavnost)-MIN(ROW(Dejavnost))+1),ROWS($B$3:B67)))&CHAR(10),\"\")","v":""}]
[null,{"$f":"IFERROR(INDEX(Dejavnost,SMALL(IF(Cilj=$B$2,ROW(Dejavnost)-MIN(ROW(Dejavnost))+1),ROWS($B$3:B68)))&\" \"&CHAR(10)&(INDEX(Rezultat,SMALL(IF(Cilj=$B$2,ROW(Rezultat)-MIN(ROW(Rezultat))+1),ROWS($B$3:B68))))&CHAR(10),\"\")","v":""},null,{"$f":"IFERROR(INDEX(Dejavnost,SMALL(IF(Cilj=$D$2,ROW(Dejavnost)-MIN(ROW(Dejavnost))+1),ROWS($B$3:B68)))&CHAR(10),\"\")","v":""},null,{"$f":"IFERROR(INDEX(Dejavnost,SMALL(IF(Cilj=$F$2,ROW(Dejavnost)-MIN(ROW(Dejavnost))+1),ROWS($B$3:B68)))&CHAR(10),\"\")","v":""},null,{"$f":"IFERROR(INDEX(Dejavnost,SMALL(IF(Cilj=$H$2,ROW(Dejavnost)-MIN(ROW(Dejavnost))+1),ROWS($B$3:B68)))&CHAR(10),\"\")","v":""}]
[null,{"$f":"IFERROR(INDEX(Dejavnost,SMALL(IF(Cilj=$B$2,ROW(Dejavnost)-MIN(ROW(Dejavnost))+1),ROWS($B$3:B69)))&\" \"&CHAR(10)&(INDEX(Rezultat,SMALL(IF(Cilj=$B$2,ROW(Rezultat)-MIN(ROW(Rezultat))+1),ROWS($B$3:B69))))&CHAR(10),\"\")","v":""},null,{"$f":"IFERROR(INDEX(Dejavnost,SMALL(IF(Cilj=$D$2,ROW(Dejavnost)-MIN(ROW(Dejavnost))+1),ROWS($B$3:B69)))&CHAR(10),\"\")","v":""},null,{"$f":"IFERROR(INDEX(Dejavnost,SMALL(IF(Cilj=$F$2,ROW(Dejavnost)-MIN(ROW(Dejavnost))+1),ROWS($B$3:B69)))&CHAR(10),\"\")","v":""},null,{"$f":"IFERROR(INDEX(Dejavnost,SMALL(IF(Cilj=$H$2,ROW(Dejavnost)-MIN(ROW(Dejavnost))+1),ROWS($B$3:B69)))&CHAR(10),\"\")","v":""}]
[null,{"$f":"IFERROR(INDEX(Dejavnost,SMALL(IF(Cilj=$B$2,ROW(Dejavnost)-MIN(ROW(Dejavnost))+1),ROWS($B$3:B70)))&\" \"&CHAR(10)&(INDEX(Rezultat,SMALL(IF(Cilj=$B$2,ROW(Rezultat)-MIN(ROW(Rezultat))+1),ROWS($B$3:B70))))&CHAR(10),\"\")","v":""},null,{"$f":"IFERROR(INDEX(Dejavnost,SMALL(IF(Cilj=$D$2,ROW(Dejavnost)-MIN(ROW(Dejavnost))+1),ROWS($B$3:B70)))&CHAR(10),\"\")","v":""},null,{"$f":"IFERROR(INDEX(Dejavnost,SMALL(IF(Cilj=$F$2,ROW(Dejavnost)-MIN(ROW(Dejavnost))+1),ROWS($B$3:B70)))&CHAR(10),\"\")","v":""},null,{"$f":"IFERROR(INDEX(Dejavnost,SMALL(IF(Cilj=$H$2,ROW(Dejavnost)-MIN(ROW(Dejavnost))+1),ROWS($B$3:B70)))&CHAR(10),\"\")","v":""}]
[null,{"$f":"IFERROR(INDEX(Dejavnost,SMALL(IF(Cilj=$B$2,ROW(Dejavnost)-MIN(ROW(Dejavnost))+1),ROWS($B$3:B71)))&\" \"&CHAR(10)&(INDEX(Rezultat,SMALL(IF(Cilj=$B$2,ROW(Rezultat)-MIN(ROW(Rezultat))+1),ROWS($B$3:B71))))&CHAR(10),\"\")","v":""},null,{"$f":"IFERROR(INDEX(Dejavnost,SMALL(IF(Cilj=$D$2,ROW(Dejavnost)-MIN(ROW(Dejavnost))+1),ROWS($B$3:B71)))&CHAR(10),\"\")","v":""},null,{"$f":"IFERROR(INDEX(Dejavnost,SMALL(IF(Cilj=$F$2,ROW(Dejavnost)-MIN(ROW(Dejavnost))+1),ROWS($B$3:B71)))&CHAR(10),\"\")","v":""},null,{"$f":"IFERROR(INDEX(Dejavnost,SMALL(IF(Cilj=$H$2,ROW(Dejavnost)-MIN(ROW(Dejavnost))+1),ROWS($B$3:B71)))&CHAR(10),\"\")","v":""}]
[null,{"$f":"IFERROR(INDEX(Dejavnost,SMALL(IF(Cilj=$B$2,ROW(Dejavnost)-MIN(ROW(Dejavnost))+1),ROWS($B$3:B72)))&\" \"&CHAR(10)&(INDEX(Rezultat,SMALL(IF(Cilj=$B$2,ROW(Rezultat)-MIN(ROW(Rezultat))+1),ROWS($B$3:B72))))&CHAR(10),\"\")","v":""},null,{"$f":"IFERROR(INDEX(Dejavnost,SMALL(IF(Cilj=$D$2,ROW(Dejavnost)-MIN(ROW(Dejavnost))+1),ROWS($B$3:B72)))&CHAR(10),\"\")","v":""},null,{"$f":"IFERROR(INDEX(Dejavnost,SMALL(IF(Cilj=$F$2,ROW(Dejavnost)-MIN(ROW(Dejavnost))+1),ROWS($B$3:B72)))&CHAR(10),\"\")","v":""},null,{"$f":"IFERROR(INDEX(Dejavnost,SMALL(IF(Cilj=$H$2,ROW(Dejavnost)-MIN(ROW(Dejavnost))+1),ROWS($B$3:B72)))&CHAR(10),\"\")","v":""}]
[null,{"$f":"IFERROR(INDEX(Dejavnost,SMALL(IF(Cilj=$B$2,ROW(Dejavnost)-MIN(ROW(Dejavnost))+1),ROWS($B$3:B73)))&\" \"&CHAR(10)&(INDEX(Rezultat,SMALL(IF(Cilj=$B$2,ROW(Rezultat)-MIN(ROW(Rezultat))+1),ROWS($B$3:B73))))&CHAR(10),\"\")","v":""},null,{"$f":"IFERROR(INDEX(Dejavnost,SMALL(IF(Cilj=$D$2,ROW(Dejavnost)-MIN(ROW(Dejavnost))+1),ROWS($B$3:B73)))&CHAR(10),\"\")","v":""},null,{"$f":"IFERROR(INDEX(Dejavnost,SMALL(IF(Cilj=$F$2,ROW(Dejavnost)-MIN(ROW(Dejavnost))+1),ROWS($B$3:B73)))&CHAR(10),\"\")","v":""},null,{"$f":"IFERROR(INDEX(Dejavnost,SMALL(IF(Cilj=$H$2,ROW(Dejavnost)-MIN(ROW(Dejavnost))+1),ROWS($B$3:B73)))&CHAR(10),\"\")","v":""}]
[null,{"$f":"IFERROR(INDEX(Dejavnost,SMALL(IF(Cilj=$B$2,ROW(Dejavnost)-MIN(ROW(Dejavnost))+1),ROWS($B$3:B74)))&\" \"&CHAR(10)&(INDEX(Rezultat,SMALL(IF(Cilj=$B$2,ROW(Rezultat)-MIN(ROW(Rezultat))+1),ROWS($B$3:B74))))&CHAR(10),\"\")","v":""},null,{"$f":"IFERROR(INDEX(Dejavnost,SMALL(IF(Cilj=$D$2,ROW(Dejavnost)-MIN(ROW(Dejavnost))+1),ROWS($B$3:B74)))&CHAR(10),\"\")","v":""},null,{"$f":"IFERROR(INDEX(Dejavnost,SMALL(IF(Cilj=$F$2,ROW(Dejavnost)-MIN(ROW(Dejavnost))+1),ROWS($B$3:B74)))&CHAR(10),\"\")","v":""},null,{"$f":"IFERROR(INDEX(Dejavnost,SMALL(IF(Cilj=$H$2,ROW(Dejavnost)-MIN(ROW(Dejavnost))+1),ROWS($B$3:B74)))&CHAR(10),\"\")","v":""}]
[null,{"$f":"IFERROR(INDEX(Dejavnost,SMALL(IF(Cilj=$B$2,ROW(Dejavnost)-MIN(ROW(Dejavnost))+1),ROWS($B$3:B75)))&\" \"&CHAR(10)&(INDEX(Rezultat,SMALL(IF(Cilj=$B$2,ROW(Rezultat)-MIN(ROW(Rezultat))+1),ROWS($B$3:B75))))&CHAR(10),\"\")","v":""},null,{"$f":"IFERROR(INDEX(Dejavnost,SMALL(IF(Cilj=$D$2,ROW(Dejavnost)-MIN(ROW(Dejavnost))+1),ROWS($B$3:B75)))&CHAR(10),\"\")","v":""},null,{"$f":"IFERROR(INDEX(Dejavnost,SMALL(IF(Cilj=$F$2,ROW(Dejavnost)-MIN(ROW(Dejavnost))+1),ROWS($B$3:B75)))&CHAR(10),\"\")","v":""},null,{"$f":"IFERROR(INDEX(Dejavnost,SMALL(IF(Cilj=$H$2,ROW(Dejavnost)-MIN(ROW(Dejavnost))+1),ROWS($B$3:B75)))&CHAR(10),\"\")","v":""}]
[null,{"$f":"IFERROR(INDEX(Dejavnost,SMALL(IF(Cilj=$B$2,ROW(Dejavnost)-MIN(ROW(Dejavnost))+1),ROWS($B$3:B76)))&\" \"&CHAR(10)&(INDEX(Rezultat,SMALL(IF(Cilj=$B$2,ROW(Rezultat)-MIN(ROW(Rezultat))+1),ROWS($B$3:B76))))&CHAR(10),\"\")","v":""},null,{"$f":"IFERROR(INDEX(Dejavnost,SMALL(IF(Cilj=$D$2,ROW(Dejavnost)-MIN(ROW(Dejavnost))+1),ROWS($B$3:B76)))&CHAR(10),\"\")","v":""},null,{"$f":"IFERROR(INDEX(Dejavnost,SMALL(IF(Cilj=$F$2,ROW(Dejavnost)-MIN(ROW(Dejavnost))+1),ROWS($B$3:B76)))&CHAR(10),\"\")","v":""},null,{"$f":"IFERROR(INDEX(Dejavnost,SMALL(IF(Cilj=$H$2,ROW(Dejavnost)-MIN(ROW(Dejavnost))+1),ROWS($B$3:B76)))&CHAR(10),\"\")","v":""}]
[null,{"$f":"IFERROR(INDEX(Dejavnost,SMALL(IF(Cilj=$B$2,ROW(Dejavnost)-MIN(ROW(Dejavnost))+1),ROWS($B$3:B77)))&\" \"&CHAR(10)&(INDEX(Rezultat,SMALL(IF(Cilj=$B$2,ROW(Rezultat)-MIN(ROW(Rezultat))+1),ROWS($B$3:B77))))&CHAR(10),\"\")","v":""},null,{"$f":"IFERROR(INDEX(Dejavnost,SMALL(IF(Cilj=$D$2,ROW(Dejavnost)-MIN(ROW(Dejavnost))+1),ROWS($B$3:B77)))&CHAR(10),\"\")","v":""},null,{"$f":"IFERROR(INDEX(Dejavnost,SMALL(IF(Cilj=$F$2,ROW(Dejavnost)-MIN(ROW(Dejavnost))+1),ROWS($B$3:B77)))&CHAR(10),\"\")","v":""},null,{"$f":"IFERROR(INDEX(Dejavnost,SMALL(IF(Cilj=$H$2,ROW(Dejavnost)-MIN(ROW(Dejavnost))+1),ROWS($B$3:B77)))&CHAR(10),\"\")","v":""}]
[null,{"$f":"IFERROR(INDEX(Dejavnost,SMALL(IF(Cilj=$B$2,ROW(Dejavnost)-MIN(ROW(Dejavnost))+1),ROWS($B$3:B78)))&\" \"&CHAR(10)&(INDEX(Rezultat,SMALL(IF(Cilj=$B$2,ROW(Rezultat)-MIN(ROW(Rezultat))+1),ROWS($B$3:B78))))&CHAR(10),\"\")","v":""},null,{"$f":"IFERROR(INDEX(Dejavnost,SMALL(IF(Cilj=$D$2,ROW(Dejavnost)-MIN(ROW(Dejavnost))+1),ROWS($B$3:B78)))&CHAR(10),\"\")","v":""},null,{"$f":"IFERROR(INDEX(Dejavnost,SMALL(IF(Cilj=$F$2,ROW(Dejavnost)-MIN(ROW(Dejavnost))+1),ROWS($B$3:B78)))&CHAR(10),\"\")","v":""},null,{"$f":"IFERROR(INDEX(Dejavnost,SMALL(IF(Cilj=$H$2,ROW(Dejavnost)-MIN(ROW(Dejavnost))+1),ROWS($B$3:B78)))&CHAR(10),\"\")","v":""}]
[null,{"$f":"IFERROR(INDEX(Dejavnost,SMALL(IF(Cilj=$B$2,ROW(Dejavnost)-MIN(ROW(Dejavnost))+1),ROWS($B$3:B79)))&\" \"&CHAR(10)&(INDEX(Rezultat,SMALL(IF(Cilj=$B$2,ROW(Rezultat)-MIN(ROW(Rezultat))+1),ROWS($B$3:B79))))&CHAR(10),\"\")","v":""},null,{"$f":"IFERROR(INDEX(Dejavnost,SMALL(IF(Cilj=$D$2,ROW(Dejavnost)-MIN(ROW(Dejavnost))+1),ROWS($B$3:B79)))&CHAR(10),\"\")","v":""},null,{"$f":"IFERROR(INDEX(Dejavnost,SMALL(IF(Cilj=$F$2,ROW(Dejavnost)-MIN(ROW(Dejavnost))+1),ROWS($B$3:B79)))&CHAR(10),\"\")","v":""},null,{"$f":"IFERROR(INDEX(Dejavnost,SMALL(IF(Cilj=$H$2,ROW(Dejavnost)-MIN(ROW(Dejavnost))+1),ROWS($B$3:B79)))&CHAR(10),\"\")","v":""}]
[null,{"$f":"IFERROR(INDEX(Dejavnost,SMALL(IF(Cilj=$B$2,ROW(Dejavnost)-MIN(ROW(Dejavnost))+1),ROWS($B$3:B80)))&\" \"&CHAR(10)&(INDEX(Rezultat,SMALL(IF(Cilj=$B$2,ROW(Rezultat)-MIN(ROW(Rezultat))+1),ROWS($B$3:B80))))&CHAR(10),\"\")","v":""},null,{"$f":"IFERROR(INDEX(Dejavnost,SMALL(IF(Cilj=$D$2,ROW(Dejavnost)-MIN(ROW(Dejavnost))+1),ROWS($B$3:B80)))&CHAR(10),\"\")","v":""},null,{"$f":"IFERROR(INDEX(Dejavnost,SMALL(IF(Cilj=$F$2,ROW(Dejavnost)-MIN(ROW(Dejavnost))+1),ROWS($B$3:B80)))&CHAR(10),\"\")","v":""},null,{"$f":"IFERROR(INDEX(Dejavnost,SMALL(IF(Cilj=$H$2,ROW(Dejavnost)-MIN(ROW(Dejavnost))+1),ROWS($B$3:B80)))&CHAR(10),\"\")","v":""}]
[null,{"$f":"IFERROR(INDEX(Dejavnost,SMALL(IF(Cilj=$B$2,ROW(Dejavnost)-MIN(ROW(Dejavnost))+1),ROWS($B$3:B81)))&\" \"&CHAR(10)&(INDEX(Rezultat,SMALL(IF(Cilj=$B$2,ROW(Rezultat)-MIN(ROW(Rezultat))+1),ROWS($B$3:B81))))&CHAR(10),\"\")","v":""},null,{"$f":"IFERROR(INDEX(Dejavnost,SMALL(IF(Cilj=$D$2,ROW(Dejavnost)-MIN(ROW(Dejavnost))+1),ROWS($B$3:B81)))&CHAR(10),\"\")","v":""},null,{"$f":"IFERROR(INDEX(Dejavnost,SMALL(IF(Cilj=$F$2,ROW(Dejavnost)-MIN(ROW(Dejavnost))+1),ROWS($B$3:B81)))&CHAR(10),\"\")","v":""},null,{"$f":"IFERROR(INDEX(Dejavnost,SMALL(IF(Cilj=$H$2,ROW(Dejavnost)-MIN(ROW(Dejavnost))+1),ROWS($B$3:B81)))&CHAR(10),\"\")","v":""}]
[null,{"$f":"IFERROR(INDEX(Dejavnost,SMALL(IF(Cilj=$B$2,ROW(Dejavnost)-MIN(ROW(Dejavnost))+1),ROWS($B$3:B82)))&\" \"&CHAR(10)&(INDEX(Rezultat,SMALL(IF(Cilj=$B$2,ROW(Rezultat)-MIN(ROW(Rezultat))+1),ROWS($B$3:B82))))&CHAR(10),\"\")","v":""},null,{"$f":"IFERROR(INDEX(Dejavnost,SMALL(IF(Cilj=$D$2,ROW(Dejavnost)-MIN(ROW(Dejavnost))+1),ROWS($B$3:B82)))&CHAR(10),\"\")","v":""},null,{"$f":"IFERROR(INDEX(Dejavnost,SMALL(IF(Cilj=$F$2,ROW(Dejavnost)-MIN(ROW(Dejavnost))+1),ROWS($B$3:B82)))&CHAR(10),\"\")","v":""},null,{"$f":"IFERROR(INDEX(Dejavnost,SMALL(IF(Cilj=$H$2,ROW(Dejavnost)-MIN(ROW(Dejavnost))+1),ROWS($B$3:B82)))&CHAR(10),\"\")","v":""}]
[null,{"$f":"IFERROR(INDEX(Dejavnost,SMALL(IF(Cilj=$B$2,ROW(Dejavnost)-MIN(ROW(Dejavnost))+1),ROWS($B$3:B83)))&\" \"&CHAR(10)&(INDEX(Rezultat,SMALL(IF(Cilj=$B$2,ROW(Rezultat)-MIN(ROW(Rezultat))+1),ROWS($B$3:B83))))&CHAR(10),\"\")","v":""},null,{"$f":"IFERROR(INDEX(Dejavnost,SMALL(IF(Cilj=$D$2,ROW(Dejavnost)-MIN(ROW(Dejavnost))+1),ROWS($B$3:B83)))&CHAR(10),\"\")","v":""},null,{"$f":"IFERROR(INDEX(Dejavnost,SMALL(IF(Cilj=$F$2,ROW(Dejavnost)-MIN(ROW(Dejavnost))+1),ROWS($B$3:B83)))&CHAR(10),\"\")","v":""},null,{"$f":"IFERROR(INDEX(Dejavnost,SMALL(IF(Cilj=$H$2,ROW(Dejavnost)-MIN(ROW(Dejavnost))+1),ROWS($B$3:B83)))&CHAR(10),\"\")","v":""}]
[null,{"$f":"IFERROR(INDEX(Dejavnost,SMALL(IF(Cilj=$B$2,ROW(Dejavnost)-MIN(ROW(Dejavnost))+1),ROWS($B$3:B84)))&\" \"&CHAR(10)&(INDEX(Rezultat,SMALL(IF(Cilj=$B$2,ROW(Rezultat)-MIN(ROW(Rezultat))+1),ROWS($B$3:B84))))&CHAR(10),\"\")","v":""},null,{"$f":"IFERROR(INDEX(Dejavnost,SMALL(IF(Cilj=$D$2,ROW(Dejavnost)-MIN(ROW(Dejavnost))+1),ROWS($B$3:B84)))&CHAR(10),\"\")","v":""},null,{"$f":"IFERROR(INDEX(Dejavnost,SMALL(IF(Cilj=$F$2,ROW(Dejavnost)-MIN(ROW(Dejavnost))+1),ROWS($B$3:B84)))&CHAR(10),\"\")","v":""},null,{"$f":"IFERROR(INDEX(Dejavnost,SMALL(IF(Cilj=$H$2,ROW(Dejavnost)-MIN(ROW(Dejavnost))+1),ROWS($B$3:B84)))&CHAR(10),\"\")","v":""}]
[null,{"$f":"IFERROR(INDEX(Dejavnost,SMALL(IF(Cilj=$B$2,ROW(Dejavnost)-MIN(ROW(Dejavnost))+1),ROWS($B$3:B85)))&\" \"&CHAR(10)&(INDEX(Rezultat,SMALL(IF(Cilj=$B$2,ROW(Rezultat)-MIN(ROW(Rezultat))+1),ROWS($B$3:B85))))&CHAR(10),\"\")","v":""},null,{"$f":"IFERROR(INDEX(Dejavnost,SMALL(IF(Cilj=$D$2,ROW(Dejavnost)-MIN(ROW(Dejavnost))+1),ROWS($B$3:B85)))&CHAR(10),\"\")","v":""},null,{"$f":"IFERROR(INDEX(Dejavnost,SMALL(IF(Cilj=$F$2,ROW(Dejavnost)-MIN(ROW(Dejavnost))+1),ROWS($B$3:B85)))&CHAR(10),\"\")","v":""},null,{"$f":"IFERROR(INDEX(Dejavnost,SMALL(IF(Cilj=$H$2,ROW(Dejavnost)-MIN(ROW(Dejavnost))+1),ROWS($B$3:B85)))&CHAR(10),\"\")","v":""}]
[null,{"$f":"IFERROR(INDEX(Dejavnost,SMALL(IF(Cilj=$B$2,ROW(Dejavnost)-MIN(ROW(Dejavnost))+1),ROWS($B$3:B86)))&\" \"&CHAR(10)&(INDEX(Rezultat,SMALL(IF(Cilj=$B$2,ROW(Rezultat)-MIN(ROW(Rezultat))+1),ROWS($B$3:B86))))&CHAR(10),\"\")","v":""},null,{"$f":"IFERROR(INDEX(Dejavnost,SMALL(IF(Cilj=$D$2,ROW(Dejavnost)-MIN(ROW(Dejavnost))+1),ROWS($B$3:B86)))&CHAR(10),\"\")","v":""},null,{"$f":"IFERROR(INDEX(Dejavnost,SMALL(IF(Cilj=$F$2,ROW(Dejavnost)-MIN(ROW(Dejavnost))+1),ROWS($B$3:B86)))&CHAR(10),\"\")","v":""},null,{"$f":"IFERROR(INDEX(Dejavnost,SMALL(IF(Cilj=$H$2,ROW(Dejavnost)-MIN(ROW(Dejavnost))+1),ROWS($B$3:B86)))&CHAR(10),\"\")","v":""}]
[null,{"$f":"IFERROR(INDEX(Dejavnost,SMALL(IF(Cilj=$B$2,ROW(Dejavnost)-MIN(ROW(Dejavnost))+1),ROWS($B$3:B87)))&\" \"&CHAR(10)&(INDEX(Rezultat,SMALL(IF(Cilj=$B$2,ROW(Rezultat)-MIN(ROW(Rezultat))+1),ROWS($B$3:B87))))&CHAR(10),\"\")","v":""},null,{"$f":"IFERROR(INDEX(Dejavnost,SMALL(IF(Cilj=$D$2,ROW(Dejavnost)-MIN(ROW(Dejavnost))+1),ROWS($B$3:B87)))&CHAR(10),\"\")","v":""},null,{"$f":"IFERROR(INDEX(Dejavnost,SMALL(IF(Cilj=$F$2,ROW(Dejavnost)-MIN(ROW(Dejavnost))+1),ROWS($B$3:B87)))&CHAR(10),\"\")","v":""},null,{"$f":"IFERROR(INDEX(Dejavnost,SMALL(IF(Cilj=$H$2,ROW(Dejavnost)-MIN(ROW(Dejavnost))+1),ROWS($B$3:B87)))&CHAR(10),\"\")","v":""}]
[null,{"$f":"IFERROR(INDEX(Dejavnost,SMALL(IF(Cilj=$B$2,ROW(Dejavnost)-MIN(ROW(Dejavnost))+1),ROWS($B$3:B88)))&\" \"&CHAR(10)&(INDEX(Rezultat,SMALL(IF(Cilj=$B$2,ROW(Rezultat)-MIN(ROW(Rezultat))+1),ROWS($B$3:B88))))&CHAR(10),\"\")","v":""},null,{"$f":"IFERROR(INDEX(Dejavnost,SMALL(IF(Cilj=$D$2,ROW(Dejavnost)-MIN(ROW(Dejavnost))+1),ROWS($B$3:B88)))&CHAR(10),\"\")","v":""},null,{"$f":"IFERROR(INDEX(Dejavnost,SMALL(IF(Cilj=$F$2,ROW(Dejavnost)-MIN(ROW(Dejavnost))+1),ROWS($B$3:B88)))&CHAR(10),\"\")","v":""},null,{"$f":"IFERROR(INDEX(Dejavnost,SMALL(IF(Cilj=$H$2,ROW(Dejavnost)-MIN(ROW(Dejavnost))+1),ROWS($B$3:B88)))&CHAR(10),\"\")","v":""}]
[null,{"$f":"IFERROR(INDEX(Dejavnost,SMALL(IF(Cilj=$B$2,ROW(Dejavnost)-MIN(ROW(Dejavnost))+1),ROWS($B$3:B89)))&\" \"&CHAR(10)&(INDEX(Rezultat,SMALL(IF(Cilj=$B$2,ROW(Rezultat)-MIN(ROW(Rezultat))+1),ROWS($B$3:B89))))&CHAR(10),\"\")","v":""},null,{"$f":"IFERROR(INDEX(Dejavnost,SMALL(IF(Cilj=$D$2,ROW(Dejavnost)-MIN(ROW(Dejavnost))+1),ROWS($B$3:B89)))&CHAR(10),\"\")","v":""},null,{"$f":"IFERROR(INDEX(Dejavnost,SMALL(IF(Cilj=$F$2,ROW(Dejavnost)-MIN(ROW(Dejavnost))+1),ROWS($B$3:B89)))&CHAR(10),\"\")","v":""},null,{"$f":"IFERROR(INDEX(Dejavnost,SMALL(IF(Cilj=$H$2,ROW(Dejavnost)-MIN(ROW(Dejavnost))+1),ROWS($B$3:B89)))&CHAR(10),\"\")","v":""}]
[null,{"$f":"IFERROR(INDEX(Dejavnost,SMALL(IF(Cilj=$B$2,ROW(Dejavnost)-MIN(ROW(Dejavnost))+1),ROWS($B$3:B90)))&\" \"&CHAR(10)&(INDEX(Rezultat,SMALL(IF(Cilj=$B$2,ROW(Rezultat)-MIN(ROW(Rezultat))+1),ROWS($B$3:B90))))&CHAR(10),\"\")","v":""},null,{"$f":"IFERROR(INDEX(Dejavnost,SMALL(IF(Cilj=$D$2,ROW(Dejavnost)-MIN(ROW(Dejavnost))+1),ROWS($B$3:B90)))&CHAR(10),\"\")","v":""},null,{"$f":"IFERROR(INDEX(Dejavnost,SMALL(IF(Cilj=$F$2,ROW(Dejavnost)-MIN(ROW(Dejavnost))+1),ROWS($B$3:B90)))&CHAR(10),\"\")","v":""},null,{"$f":"IFERROR(INDEX(Dejavnost,SMALL(IF(Cilj=$H$2,ROW(Dejavnost)-MIN(ROW(Dejavnost))+1),ROWS($B$3:B90)))&CHAR(10),\"\")","v":""}]
[null,{"$f":"IFERROR(INDEX(Dejavnost,SMALL(IF(Cilj=$B$2,ROW(Dejavnost)-MIN(ROW(Dejavnost))+1),ROWS($B$3:B91)))&\" \"&CHAR(10)&(INDEX(Rezultat,SMALL(IF(Cilj=$B$2,ROW(Rezultat)-MIN(ROW(Rezultat))+1),ROWS($B$3:B91))))&CHAR(10),\"\")","v":""},null,{"$f":"IFERROR(INDEX(Dejavnost,SMALL(IF(Cilj=$D$2,ROW(Dejavnost)-MIN(ROW(Dejavnost))+1),ROWS($B$3:B91)))&CHAR(10),\"\")","v":""},null,{"$f":"IFERROR(INDEX(Dejavnost,SMALL(IF(Cilj=$F$2,ROW(Dejavnost)-MIN(ROW(Dejavnost))+1),ROWS($B$3:B91)))&CHAR(10),\"\")","v":""},null,{"$f":"IFERROR(INDEX(Dejavnost,SMALL(IF(Cilj=$H$2,ROW(Dejavnost)-MIN(ROW(Dejavnost))+1),ROWS($B$3:B91)))&CHAR(10),\"\")","v":""}]
[null,{"$f":"IFERROR(INDEX(Dejavnost,SMALL(IF(Cilj=$B$2,ROW(Dejavnost)-MIN(ROW(Dejavnost))+1),ROWS($B$3:B92)))&\" \"&CHAR(10)&(INDEX(Rezultat,SMALL(IF(Cilj=$B$2,ROW(Rezultat)-MIN(ROW(Rezultat))+1),ROWS($B$3:B92))))&CHAR(10),\"\")","v":""},null,{"$f":"IFERROR(INDEX(Dejavnost,SMALL(IF(Cilj=$D$2,ROW(Dejavnost)-MIN(ROW(Dejavnost))+1),ROWS($B$3:B92)))&CHAR(10),\"\")","v":""},null,{"$f":"IFERROR(INDEX(Dejavnost,SMALL(IF(Cilj=$F$2,ROW(Dejavnost)-MIN(ROW(Dejavnost))+1),ROWS($B$3:B92)))&CHAR(10),\"\")","v":""},null,{"$f":"IFERROR(INDEX(Dejavnost,SMALL(IF(Cilj=$H$2,ROW(Dejavnost)-MIN(ROW(Dejavnost))+1),ROWS($B$3:B92)))&CHAR(10),\"\")","v":""}]
[null,{"$f":"IFERROR(INDEX(Dejavnost,SMALL(IF(Cilj=$B$2,ROW(Dejavnost)-MIN(ROW(Dejavnost))+1),ROWS($B$3:B93)))&\" \"&CHAR(10)&(INDEX(Rezultat,SMALL(IF(Cilj=$B$2,ROW(Rezultat)-MIN(ROW(Rezultat))+1),ROWS($B$3:B93))))&CHAR(10),\"\")","v":""},null,{"$f":"IFERROR(INDEX(Dejavnost,SMALL(IF(Cilj=$D$2,ROW(Dejavnost)-MIN(ROW(Dejavnost))+1),ROWS($B$3:B93)))&CHAR(10),\"\")","v":""},null,{"$f":"IFERROR(INDEX(Dejavnost,SMALL(IF(Cilj=$F$2,ROW(Dejavnost)-MIN(ROW(Dejavnost))+1),ROWS($B$3:B93)))&CHAR(10),\"\")","v":""},null,{"$f":"IFERROR(INDEX(Dejavnost,SMALL(IF(Cilj=$H$2,ROW(Dejavnost)-MIN(ROW(Dejavnost))+1),ROWS($B$3:B93)))&CHAR(10),\"\")","v":""}]
[null,{"$f":"IFERROR(INDEX(Dejavnost,SMALL(IF(Cilj=$B$2,ROW(Dejavnost)-MIN(ROW(Dejavnost))+1),ROWS($B$3:B94)))&\" \"&CHAR(10)&(INDEX(Rezultat,SMALL(IF(Cilj=$B$2,ROW(Rezultat)-MIN(ROW(Rezultat))+1),ROWS($B$3:B94))))&CHAR(10),\"\")","v":""},null,{"$f":"IFERROR(INDEX(Dejavnost,SMALL(IF(Cilj=$D$2,ROW(Dejavnost)-MIN(ROW(Dejavnost))+1),ROWS($B$3:B94)))&CHAR(10),\"\")","v":""},null,{"$f":"IFERROR(INDEX(Dejavnost,SMALL(IF(Cilj=$F$2,ROW(Dejavnost)-MIN(ROW(Dejavnost))+1),ROWS($B$3:B94)))&CHAR(10),\"\")","v":""},null,{"$f":"IFERROR(INDEX(Dejavnost,SMALL(IF(Cilj=$H$2,ROW(Dejavnost)-MIN(ROW(Dejavnost))+1),ROWS($B$3:B94)))&CHAR(10),\"\")","v":""}]
[null,{"$f":"IFERROR(INDEX(Dejavnost,SMALL(IF(Cilj=$B$2,ROW(Dejavnost)-MIN(ROW(Dejavnost))+1),ROWS($B$3:B95)))&\" \"&CHAR(10)&(INDEX(Rezultat,SMALL(IF(Cilj=$B$2,ROW(Rezultat)-MIN(ROW(Rezultat))+1),ROWS($B$3:B95))))&CHAR(10),\"\")","v":""},null,{"$f":"IFERROR(INDEX(Dejavnost,SMALL(IF(Cilj=$D$2,ROW(Dejavnost)-MIN(ROW(Dejavnost))+1),ROWS($B$3:B95)))&CHAR(10),\"\")","v":""},null,{"$f":"IFERROR(INDEX(Dejavnost,SMALL(IF(Cilj=$F$2,ROW(Dejavnost)-MIN(ROW(Dejavnost))+1),ROWS($B$3:B95)))&CHAR(10),\"\")","v":""},null,{"$f":"IFERROR(INDEX(Dejavnost,SMALL(IF(Cilj=$H$2,ROW(Dejavnost)-MIN(ROW(Dejavnost))+1),ROWS($B$3:B95)))&CHAR(10),\"\")","v":""}]
[null,{"$f":"IFERROR(INDEX(Dejavnost,SMALL(IF(Cilj=$B$2,ROW(Dejavnost)-MIN(ROW(Dejavnost))+1),ROWS($B$3:B96)))&\" \"&CHAR(10)&(INDEX(Rezultat,SMALL(IF(Cilj=$B$2,ROW(Rezultat)-MIN(ROW(Rezultat))+1),ROWS($B$3:B96))))&CHAR(10),\"\")","v":""},null,{"$f":"IFERROR(INDEX(Dejavnost,SMALL(IF(Cilj=$D$2,ROW(Dejavnost)-MIN(ROW(Dejavnost))+1),ROWS($B$3:B96)))&CHAR(10),\"\")","v":""},null,{"$f":"IFERROR(INDEX(Dejavnost,SMALL(IF(Cilj=$F$2,ROW(Dejavnost)-MIN(ROW(Dejavnost))+1),ROWS($B$3:B96)))&CHAR(10),\"\")","v":""},null,{"$f":"IFERROR(INDEX(Dejavnost,SMALL(IF(Cilj=$H$2,ROW(Dejavnost)-MIN(ROW(Dejavnost))+1),ROWS($B$3:B96)))&CHAR(10),\"\")","v":""}]
[null,{"$f":"IFERROR(INDEX(Dejavnost,SMALL(IF(Cilj=$B$2,ROW(Dejavnost)-MIN(ROW(Dejavnost))+1),ROWS($B$3:B97)))&\" \"&CHAR(10)&(INDEX(Rezultat,SMALL(IF(Cilj=$B$2,ROW(Rezultat)-MIN(ROW(Rezultat))+1),ROWS($B$3:B97))))&CHAR(10),\"\")","v":""},null,{"$f":"IFERROR(INDEX(Dejavnost,SMALL(IF(Cilj=$D$2,ROW(Dejavnost)-MIN(ROW(Dejavnost))+1),ROWS($B$3:B97)))&CHAR(10),\"\")","v":""},null,{"$f":"IFERROR(INDEX(Dejavnost,SMALL(IF(Cilj=$F$2,ROW(Dejavnost)-MIN(ROW(Dejavnost))+1),ROWS($B$3:B97)))&CHAR(10),\"\")","v":""},null,{"$f":"IFERROR(INDEX(Dejavnost,SMALL(IF(Cilj=$H$2,ROW(Dejavnost)-MIN(ROW(Dejavnost))+1),ROWS($B$3:B97)))&CHAR(10),\"\")","v":""}]
[null,{"$f":"IFERROR(INDEX(Dejavnost,SMALL(IF(Cilj=$B$2,ROW(Dejavnost)-MIN(ROW(Dejavnost))+1),ROWS($B$3:B98)))&\" \"&CHAR(10)&(INDEX(Rezultat,SMALL(IF(Cilj=$B$2,ROW(Rezultat)-MIN(ROW(Rezultat))+1),ROWS($B$3:B98))))&CHAR(10),\"\")","v":""},null,{"$f":"IFERROR(INDEX(Dejavnost,SMALL(IF(Cilj=$D$2,ROW(Dejavnost)-MIN(ROW(Dejavnost))+1),ROWS($B$3:B98)))&CHAR(10),\"\")","v":""},null,{"$f":"IFERROR(INDEX(Dejavnost,SMALL(IF(Cilj=$F$2,ROW(Dejavnost)-MIN(ROW(Dejavnost))+1),ROWS($B$3:B98)))&CHAR(10),\"\")","v":""},null,{"$f":"IFERROR(INDEX(Dejavnost,SMALL(IF(Cilj=$H$2,ROW(Dejavnost)-MIN(ROW(Dejavnost))+1),ROWS($B$3:B98)))&CHAR(10),\"\")","v":""}]
[null,{"$f":"IFERROR(INDEX(Dejavnost,SMALL(IF(Cilj=$B$2,ROW(Dejavnost)-MIN(ROW(Dejavnost))+1),ROWS($B$3:B99)))&\" \"&CHAR(10)&(INDEX(Rezultat,SMALL(IF(Cilj=$B$2,ROW(Rezultat)-MIN(ROW(Rezultat))+1),ROWS($B$3:B99))))&CHAR(10),\"\")","v":""},null,{"$f":"IFERROR(INDEX(Dejavnost,SMALL(IF(Cilj=$D$2,ROW(Dejavnost)-MIN(ROW(Dejavnost))+1),ROWS($B$3:B99)))&CHAR(10),\"\")","v":""},null,{"$f":"IFERROR(INDEX(Dejavnost,SMALL(IF(Cilj=$F$2,ROW(Dejavnost)-MIN(ROW(Dejavnost))+1),ROWS($B$3:B99)))&CHAR(10),\"\")","v":""},null,{"$f":"IFERROR(INDEX(Dejavnost,SMALL(IF(Cilj=$H$2,ROW(Dejavnost)-MIN(ROW(Dejavnost))+1),ROWS($B$3:B99)))&CHAR(10),\"\")","v":""}]
[null,{"$f":"IFERROR(INDEX(Dejavnost,SMALL(IF(Cilj=$B$2,ROW(Dejavnost)-MIN(ROW(Dejavnost))+1),ROWS($B$3:B100)))&\" \"&CHAR(10)&(INDEX(Rezultat,SMALL(IF(Cilj=$B$2,ROW(Rezultat)-MIN(ROW(Rezultat))+1),ROWS($B$3:B100))))&CHAR(10),\"\")","v":""},null,{"$f":"IFERROR(INDEX(Dejavnost,SMALL(IF(Cilj=$D$2,ROW(Dejavnost)-MIN(ROW(Dejavnost))+1),ROWS($B$3:B100)))&CHAR(10),\"\")","v":""},null,{"$f":"IFERROR(INDEX(Dejavnost,SMALL(IF(Cilj=$F$2,ROW(Dejavnost)-MIN(ROW(Dejavnost))+1),ROWS($B$3:B100)))&CHAR(10),\"\")","v":""},null,{"$f":"IFERROR(INDEX(Dejavnost,SMALL(IF(Cilj=$H$2,ROW(Dejavnost)-MIN(ROW(Dejavnost))+1),ROWS($B$3:B100)))&CHAR(10),\"\")","v":""}]

{"sheet":"Več informacij","index":2,"n_rows":6,"n_cols":1,"rows_kept":6}
["Več o tem delovnem zvezku"]
["Navodila za bralnike zaslona"]
["V tem delovnem zvezku so 3 delovni listi. \n\nPodatki načrta\nAgilni načrt\nVeč informacij\n\nNavodila za posamezne delovne liste so v stolpcu A, ki se v vsakem listu začne v celici A1. Navodila so zapisana s skritim besedilom. Vsak korak vključuje navodila za ustrezne vrstice. Vsak naslednji korak se nadaljuje v celicah A2, A3 itd., razen če je kakor koli drugače določeno. V navodilih je lahko na primer navedeno, da se za naslednji korak »pomaknite v celico A6«. \n\nSkritega besedila ni mogoče natisniti.\n\nČe želite odstraniti ta navodila iz katerega koli delovnega lista, preprosto izbrišite stolpec A.\n"]
["Več o tem delovnem zvezku"]
["Vnesite informacije o mejniku na delovni list »Podatki načrta«.  Elemente razvrstite po prioriteti, ki naj ji sledi mejnik, da zajamete prikaz naslovov Dokončano, Trenutno, Kratek rok in Prihodnost s padajočo prioriteto – elementi z najvišjo prioriteto bodo razvrščeni na vrhu. Načrt na delovnem listu »Agilni načrt« je samodejno posodobljen.\n"]
["To je zadnje navodilo v tem delovnem listu."]